Workbook

Sheet Cover
A1: =RIGHT(CELL("filename", $A$1), LEN(CELL("filename", $A$1)) - SEARCH("]", CELL("filename", $A$1))) -> Cover
B3: PR24 Cost of new debt indexation model
B5: Model code | C5: PR24PD12
B6: Version number: | C6: 6.7
B7: File name: | C7: =MID(CELL("filename"), FIND("[", CELL("filename"), 1) + 1, FIND("]", CELL("filename"), 1) - FIND("[", CELL("filename"), 1) - 1) -> PR24PD12 Cost of new debt - Wessex Water.xlsm
B8: Date: | C8: 2024-12-01
B10: For enquiries please contact: | C10: PR24@ofwat.gov.uk

Sheet Model formatting
A1: =RIGHT(CELL("filename", $A$1), LEN(CELL("filename", $A$1)) - SEARCH("]", CELL("filename", $A$1))) -> Model formatting
A4: SHEET TABS
E6: Light Yellow | G6: Input sheets
E8: No colour (default Excel tab colour) | G8: Calculation and documentation sheets
E10: Pale Blue | G10: Key output sheets
E12: Turquoise | G12: Quality control sheets
E14: Yellow | G14: To be completed, temporary, restructured, or deleted
A17: COLOUR
B19: Font colour only
E20: Blue font | G20: Imported from another sheet
E22: Red font | G22: Exported to another sheet (except from Input sheets)
E24: Black font | G24: Within sheet link or calculation
E26: Green font | G26: Additional descriptions
B28: Font + shade combinations
E29: Black font + Light Yellow shade | G29: Inputs
E31: Black font + Light Grey shade on entire row | G31: Within-worksheet counter-flow
E33: Blue font + Light Grey shade on entire row | G33: Between-worksheet counter-flow
E35: Empty Cell with Light Grey shade | G35: Empty cells being deliberately referenced
B37: Other
E38: Black font + Pale Blue shade on entire row | G38: Section separator
E40: Light Turquoise shade | G40: Stored/dead/hard coded outputs
E42: Tan shade | G42: Pre-model time line actuals
E44: Yellow shade | G44: Work in progress / temporary
E46: Lime shade | G46: Values or logic to be reviewed
B48: Error checks & alerts
E49: Green shade | G49: OK
E51: Red shade | G51: Error
E53: Gold shade | G53: Alert
A56: ABBREVIATIONS
A62: END

Sheet ToC
A1: =RIGHT(CELL("filename", $A$1), LEN(CELL("filename", $A$1)) - SEARCH("]", CELL("filename", $A$1))) -> ToC
B3: ASSUMPTIONS: | D3: INPUTS: | F3: CALCULATIONS: | H3: OUTPUTS:
B5: Cover | D5: =InpC!$A$1 -> InpC | F5: ='RCV and post 2020 investment'!A1 -> RCV and post 2020 investment | H5: =Output!A1 -> Output
B6: Model documentation sheet | D6: Inputs - column format | F6: Calculation of RCV and notional debt balances for return | H6: Outputs to other models
B8: =$A$1 -> ToC | D8: =InpR!$A$1 -> InpR | F8: ='Cost of Debt'!A1 -> Cost of Debt
B9: Table of contents | D9: Inputs - row format | F9: Allowed cost of debt calculations
B11: Model formatting | F11: ='Water resources'!A1 -> Water resources
B12: Explanation of different formatting types | F12: Water Resources cost of debt reconciliation
B14: =Time!A1 -> Time | F14: ='Water network +'!A1 -> Water network +
B15: Treatment of time in model | F15: Water Network plus cost of debt reconciliation
F17: ='Wastewater network +'!A1 -> Wastewater network +
F18: Wastewater Network plus cost of debt reconciliation
F20: =Bioresources!A1 -> Bioresources
F21: Bioresources cost of debt reconciliation
F23: Dummy
F24: Dummy control cost of debt reconciliation
A31: END

Sheet Time
A1: =RIGHT(CELL("filename", $A$1), LEN(CELL("filename", $A$1)) - SEARCH("]", CELL("filename", $A$1))) -> Time
J2: =Time!J$22 -> 2020-03-31 | K2: =Time!K$22 -> 2021-03-31 | L2: =Time!L$22 -> 2022-03-31 | M2: =Time!M$22 -> 2023-03-31 | N2: =Time!N$22 -> 2024-03-31 | O2: =Time!O$22 -> 2025-03-31 | P2: =Time!P$22 -> 2026-03-31
J3: =Time!J$58 -> Pre Fcst | K3: =Time!K$58 -> Forecast | L3: =Time!L$58 -> Forecast | M3: =Time!M$58 -> Forecast | N3: =Time!N$58 -> Forecast | O3: =Time!O$58 -> Forecast | P3: =Time!P$58 -> Post-Fcst
E4: =Time!E$86 -> Financial Year Ending | J4: =Time!J$86 -> 2020 | K4: =Time!K$86 -> 2021 | L4: =Time!L$86 -> 2022 | M4: =Time!M$86 -> 2023 | N4: =Time!N$86 -> 2024 | O4: =Time!O$86 -> 2025 | P4: =Time!P$86 -> 2026
E5: =Time!E$10 -> Model column counter | F5: Constant | G5: Unit | H5: Total | J5: =Time!J$10 -> 1 | K5: =Time!K$10 -> 2 | L5: =Time!L$10 -> 3 | M5: =Time!M$10 -> 4 | N5: =Time!N$10 -> 5 | O5: =Time!O$10 -> 6 | P5: =Time!P$10 -> 7
A7: MODEL PERIOD
B9: Model Column Counter
E10: Model column counter | G10: counter | J10: =I10 + 1 -> 1 | K10: 2 | L10: 3 | M10: 4 | N10: 5 | O10: 6 | P10: 7
E11: Model Column Total | F11: =MAX(J10:BX10) -> 7 | G11: column
E13: =E$10 -> Model column counter | F13: 0 | G13: counter | H13: 0 | I13: 0 | J13: 1 | K13: 2 | L13: 3 | M13: 4 | N13: 5 | O13: 6 | P13: 7
E14: First model column flag | G14: flag | H14: =SUM(J14:BX14) -> 1 | J14: =IF( J13 = 1, 1, 0) -> 1 | K14: 0 | L14: 0 | M14: 0 | N14: 0 | O14: 0 | P14: 0
E16: =InpC!E$15 -> First date of time ruler | F16: =InpC!F$15 -> 2019-04-01 | G16: =InpC!G$15 -> date
E17: First model period BEG | F17: =DATE(YEAR(F16), MONTH(F16), 1) -> 2019-04-01 | G17: month
E19: =E$17 -> First model period BEG | F19: =F$17 -> 2019-04-01 | G19: =G$17 -> month
E20: =E$14 -> First model column flag | F20: 0 | G20: flag | H20: 1 | I20: 0 | J20: 1 | K20: 0 | L20: 0 | M20: 0 | N20: 0 | O20: 0 | P20: 0
E21: Model Period BEG | G21: date | J21: =IF( J20 = 1, $F19, I22 + 1) -> 2019-04-01 | K21: 2020-04-01 | L21: 2021-04-01 | M21: 2022-04-01 | N21: 2023-04-01 | O21: 2024-04-01 | P21: 2025-04-01
E22: Model Period END | G22: date | J22: =DATE(YEAR(J21), MONTH(J21) + 12, DAY(1) - 1) -> 2020-03-31 | K22: =DATE(YEAR(K21), MONTH(K21) + 12, DAY(1) - 1) -> 2021-03-31 | L22: 2022-03-31 | M22: 2023-03-31 | N22: 2024-03-31 | O22: 2025-03-31 | P22: 2026-03-31
E24: =E$22 -> Model Period END | F24: 00:00:00 | G24: date | H24: 00:00:00 | I24: 00:00:00 | J24: 2020-03-31 | K24: 2021-03-31 | L24: 2022-03-31 | M24: 2023-03-31 | N24: 2024-03-31 | O24: 2025-03-31 | P24: 2026-03-31
E25: =E$21 -> Model Period BEG | F25: 00:00:00 | G25: date | H25: 00:00:00 | I25: 00:00:00 | J25: 2019-04-01 | K25: 2020-04-01 | L25: 2021-04-01 | M25: 2022-04-01 | N25: 2023-04-01 | O25: 2024-04-01 | P25: 2025-04-01
E26: Days in Model Period | G26: days | H26: =SUM(J26:BX26) -> 2557 | J26: =J24 - J25 + 1 -> 366 | K26: 365 | L26: 365 | M26: 365 | N26: 366 | O26: 365 | P26: 365
A29: PRE FORECAST PERIOD
E31: =InpC!E$17 -> Last Pre Forecast Date | F31: =InpC!F$17 -> 2020-03-31 | G31: =InpC!G$17 -> date
E32: =E$22 -> Model Period END | F32: 00:00:00 | G32: date | H32: 00:00:00 | I32: 00:00:00 | J32: 2020-03-31 | K32: 2021-03-31 | L32: 2022-03-31 | M32: 2023-03-31 | N32: 2024-03-31 | O32: 2025-03-31 | P32: 2026-03-31
E33: Last Pre Forecast Flag | G33: flag | H33: =SUM(J33:BX33) -> 1 | J33: =IF(J32 = $F31, 1, 0) -> 1 | K33: =IF(K32 = $F31, 1, 0) -> 0 | L33: 0 | M33: 0 | N33: 0 | O33: 0 | P33: 0
E34: Pre Forecast Period Flag | G34: flag | H34: =SUM(J34:BX34) -> 1 | J34: =IF($F31 >= J32, 1, 0) -> 1 | K34: 0 | L34: 0 | M34: 0 | N34: 0 | O34: 0 | P34: 0
E35: Pre Forecast Period Total | F35: =SUM(J34:BX34) -> 1 | G35: columns
E37: =InpC!E$19 -> Acquisition date (midnight) | F37: =InpC!F$19 -> 2020-03-31 | G37: =InpC!G$19 -> date
E38: =E$22 -> Model Period END | F38: 00:00:00 | G38: date | H38: 00:00:00 | I38: 00:00:00 | J38: 2020-03-31 | K38: 2021-03-31 | L38: 2022-03-31 | M38: 2023-03-31 | N38: 2024-03-31 | O38: 2025-03-31 | P38: 2026-03-31
E39: Acquisition / initial balance date flag | G39: flag | H39: =SUM(J39:BX39) -> 1 | J39: =IF(J38 = $F37, 1, 0) -> 1 | K39: 0 | L39: 0 | M39: 0 | N39: 0 | O39: 0 | P39: 0
A42: FORECAST PERIOD
E44: =E$33 -> Last Pre Forecast Flag | F44: 0 | G44: flag | H44: 1 | I44: 0 | J44: 1 | K44: 0 | L44: 0 | M44: 0 | N44: 0 | O44: 0 | P44: 0
E45: 1st Forecast Period Flag | G45: flag | H45: =SUM(J45:BX45) -> 1 | J45: =I44 -> 0 | K45: 1 | L45: 0 | M45: 0 | N45: 0 | O45: 0 | P45: 0
E47: =InpC!E$21 -> Last forecast date | F47: =InpC!F$21 -> 2025-03-31 | G47: =InpC!G$21 -> date
E48: =E$22 -> Model Period END | F48: 00:00:00 | G48: date | H48: 00:00:00 | I48: 00:00:00 | J48: 2020-03-31 | K48: 2021-03-31 | L48: 2022-03-31 | M48: 2023-03-31 | N48: 2024-03-31 | O48: 2025-03-31 | P48: 2026-03-31
E49: Last Forecast Period Flag | G49: flag | H49: =SUM(J49:BX49) -> 1 | J49: =IF(AND($F47 > I48, $F47 <= J48), 1, 0) -> 0 | K49: 0 | L49: 0 | M49: 0 | N49: 0 | O49: 1 | P49: 0
E51: =E$45 -> 1st Forecast Period Flag | F51: 0 | G51: flag | H51: 1 | I51: 0 | J51: 0 | K51: =K$45 -> 1 | L51: 0 | M51: 0 | N51: 0 | O51: 0 | P51: 0
E52: =E$49 -> Last Forecast Period Flag | F52: 0 | G52: flag | H52: 1 | I52: 0 | J52: 0 | K52: 0 | L52: 0 | M52: 0 | N52: 0 | O52: 1 | P52: 0
E53: Forecast Period Flag | G53: flag | H53: =SUM(J53:BX53) -> 5 | J53: =J51 - I52 + I53 -> 0 | K53: 1 | L53: 1 | M53: 1 | N53: 1 | O53: 1 | P53: 0
E54: Forecast Period Total | F54: =SUM(J53:BX53) -> 5 | G54: columns
E56: =E$34 -> Pre Forecast Period Flag | F56: 0 | G56: flag | H56: 1 | I56: 0 | J56: 1 | K56: 0 | L56: 0 | M56: 0 | N56: 0 | O56: 0 | P56: 0
E57: =E$53 -> Forecast Period Flag | F57: 0 | G57: flag | H57: 5 | I57: 0 | J57: 0 | K57: 1 | L57: 1 | M57: 1 | N57: 1 | O57: 1 | P57: 0
E58: Pre Forecast vs Forecast | G58: flag | J58: =IF(J56 = 1, "Pre Fcst", IF(J57 = 1, "Forecast", "Post-Fcst")) -> Pre Fcst | K58: Forecast | L58: Forecast | M58: Forecast | N58: Forecast | O58: Forecast | P58: Post-Fcst
A61: POST FORECAST PERIOD
E63: =E$49 -> Last Forecast Period Flag | F63: 0 | G63: flag | H63: 1 | I63: 0 | J63: 0 | K63: 0 | L63: 0 | M63: 0 | N63: 0 | O63: 1 | P63: 0
E64: 1st Post Last Forecast Period Flag | G64: flag | H64: =SUM(J64:BX64) -> 1 | J64: =I63 -> 0 | K64: 0 | L64: 0 | M64: 0 | N64: 0 | O64: 0 | P64: 1
E66: =E$64 -> 1st Post Last Forecast Period Flag | F66: 0 | G66: flag | H66: 1 | I66: 0 | J66: 0 | K66: 0 | L66: 0 | M66: 0 | N66: 0 | O66: 0 | P66: 1
E67: Post Forecast Period Flag | G67: flag | H67: =SUM(J67:BX67) -> 1 | J67: =I67 + J66 -> 0 | K67: 0 | L67: 0 | M67: 0 | N67: 0 | O67: 0 | P67: 1
E68: Post Forecast Period Total | F68: =SUM(J67:BX67) -> 1 | G68: columns
A71: MODELLING PERIOD CHECK
E73: =E$11 -> Model Column Total | F73: =F$11 -> 7 | G73: =G$11 -> column
D74: less | E74: =E$35 -> Pre Forecast Period Total | F74: =F$35 -> 1 | G74: =G$35 -> columns
D75: less | E75: =E$54 -> Forecast Period Total | F75: =F$54 -> 5 | G75: =G$54 -> columns
D76: less | E76: =E$68 -> Post Forecast Period Total | F76: =F$68 -> 1 | G76: =G$68 -> columns
E77: Modelling Period Check | F77: =IF(F73 - SUM(F74:F76) <> 0, 1, 0) -> 0 | G77: check
A80: FINANCIAL YEAR
E82: =InpC!E26 -> First Modelling Column Financial Year Number | F82: =InpC!F26 -> 2020 | G82: =InpC!G26 -> year
E83: =InpC!E27 -> Financial Year End Month Number | F83: =InpC!F27 -> 3 | G83: =InpC!G27 -> month #
E84: =E$22 -> Model Period END | F84: 00:00:00 | G84: date | H84: 00:00:00 | I84: 00:00:00 | J84: 2020-03-31 | K84: 2021-03-31 | L84: 2022-03-31 | M84: 2023-03-31 | N84: 2024-03-31 | O84: 2025-03-31 | P84: 2026-03-31
E85: =E$14 -> First model column flag | F85: 0 | G85: flag | H85: 1 | I85: 0 | J85: 1 | K85: 0 | L85: 0 | M85: 0 | N85: 0 | O85: 0 | P85: 0
E86: Financial Year Ending | G86: year # | J86: =IF(J85 = 1, $F82, IF(J84 > (DATE(I86, $F83 + 1, 1) - 1), I86 + 1, I86)) -> 2020 | K86: 2021 | L86: 2022 | M86: 2023 | N86: 2024 | O86: 2025 | P86: 2026
A88: CURRENT YEAR FLAG
E90: =InpC!E$31 -> First modelling period end year | F90: =InpC!F$31 -> 2021 | G90: =InpC!G$31 -> year
E91: =E$86 -> Financial Year Ending | F91: =F$86 -> 0 | G91: year # | H91: 0 | I91: 0 | J91: 2020 | K91: 2021 | L91: 2022 | M91: 2023 | N91: 2024 | O91: 2025 | P91: 2026
E92: First modelling period flag | F92: =F$10 -> 0 | G92: flag | H92: =H$10 -> 0 | I92: =I$10 -> 0 | J92: =IF(J91 = $F90, 1, 0) -> 0 | K92: =IF(K91 = $F90, 1, 0) -> 1 | L92: 0 | M92: 0 | N92: 0 | O92: 0 | P92: 0
E94: =InpC!E$32 -> Second modelling period end year | F94: =InpC!F$32 -> 2022 | G94: =InpC!G$32 -> year
E95: =E$86 -> Financial Year Ending | F95: =F$86 -> 0 | G95: year # | H95: 0 | I95: 0 | J95: 2020 | K95: 2021 | L95: 2022 | M95: 2023 | N95: 2024 | O95: 2025 | P95: 2026
E96: Second modelling period flag | F96: =F$10 -> 0 | G96: flag | H96: =H$10 -> 0 | I96: =I$10 -> 0 | J96: =IF(J95 = $F94, 1, 0) -> 0 | K96: 0 | L96: 1 | M96: 0 | N96: 0 | O96: 0 | P96: 0
E98: =InpC!E$33 -> Third modelling period end year | F98: =InpC!F$33 -> 2023 | G98: =InpC!G$33 -> year
E99: =E$86 -> Financial Year Ending | F99: =F$86 -> 0 | G99: year # | H99: 0 | I99: 0 | J99: 2020 | K99: 2021 | L99: 2022 | M99: 2023 | N99: 2024 | O99: 2025 | P99: 2026
E100: Third modelling period flag | F100: =F$10 -> 0 | G100: flag | H100: =H$10 -> 0 | I100: =I$10 -> 0 | J100: =IF(J99 = $F98, 1, 0) -> 0 | K100: 0 | L100: 0 | M100: 1 | N100: 0 | O100: 0 | P100: 0
E102: =InpC!E$34 -> Fourth modelling period end year | F102: =InpC!F$34 -> 2024 | G102: =InpC!G$34 -> year
E103: =E$86 -> Financial Year Ending | F103: =F$86 -> 0 | G103: year # | H103: 0 | I103: 0 | J103: 2020 | K103: 2021 | L103: 2022 | M103: 2023 | N103: 2024 | O103: 2025 | P103: 2026
E104: Fourth modelling period flag | F104: =F$10 -> 0 | G104: flag | H104: =H$10 -> 0 | I104: =I$10 -> 0 | J104: =IF(J103 = $F102, 1, 0) -> 0 | K104: 0 | L104: 0 | M104: 0 | N104: 1 | O104: 0 | P104: 0
E106: =InpC!E$35 -> Fifth modelling period end year | F106: =InpC!F$35 -> 2025 | G106: =InpC!G$35 -> year
E107: =E$86 -> Financial Year Ending | F107: =F$86 -> 0 | G107: year # | H107: 0 | I107: 0 | J107: 2020 | K107: 2021 | L107: 2022 | M107: 2023 | N107: 2024 | O107: 2025 | P107: 2026
E108: Fifth modelling period flag | F108: =F$10 -> 0 | G108: flag | H108: =H$10 -> 0 | I108: =I$10 -> 0 | J108: =IF(J107 = $F106, 1, 0) -> 0 | K108: 0 | L108: 0 | M108: 0 | N108: 0 | O108: 1 | P108: 0

Sheet F_Inputs
C1: PR24PD12_IN | E1: Run on 03 Nov 2024 23:21
A2: Acronym | B2: Reference | C2: Item description | D2: Unit | E2: Model | F2: 2017-18 | G2: 2018-19 | H2: 2019-20 | I2: 2020-21 | J2: 2021-22 | K2: 2022-23 | L2: 2023-24 | M2: 2024-25
F4: Price Review 2019 | G4: Price Review 2019 | H4: Price Review 2019 | I4: Price Review 2019 | J4: Price Review 2019 | K4: Price Review 2019 | L4: Price Review 2019 | M4: Price Review 2019
F5: PR19 Run 8: Final Determinations | G5: PR19 Run 8: Final Determinations | H5: PR19 Run 8: Final Determinations | I5: PR19 Run 8: Final Determinations | J5: PR19 Run 8: Final Determinations | K5: PR19 Run 8: Final Determinations | L5: PR19 Run 8: Final Determinations | M5: PR19 Run 8: Final Determinations
F6: Latest | G6: Latest | H6: Latest | I6: Latest | J6: Latest | K6: Latest | L6: Latest | M6: Latest
A7: WSX | B7: PR19FM2173POST | C7: RCV balance - WR BEG - nominal | D7: £m | E7: Price Review 2019 | I7: 67.97808278 | J7: 77.50697924 | K7: 81.2962689 | L7: 83.51228763 | M7: 84.32355432
A8: WSX | B8: PR19FM2235POST | C8: Indexation on RCV balance BEG - WR - nominal | D8: £m | E8: Price Review 2019 | I8: 1.498635706 | J8: 1.865141565 | K8: 2.0266387 | L8: 2.089906665 | M8: 2.096330651
A9: WSX | B9: PR19FM1930POST | C9: RCV balance - WR - real | D9: £m | E9: Price Review 2019 | I9: 72.96410987 | J9: 75.02759833 | K9: 75.50590023 | L9: 74.67129301 | M9: 72.68037519
A10: WSX | B10: PR19FM2185POST | C10: RCV balance - WN BEG - nominal | D10: £m | E10: Price Review 2019 | I10: 1073.493467 | J10: 1081.452153 | K10: 1090.570966 | L10: 1121.158518 | M10: 1134.839101
A11: WSX | B11: PR19FM2241POST | C11: Indexation on RCV balance BEG - WN - nominal | D11: £m | E11: Price Review 2019 | I11: 23.66609316 | J11: 26.71032456 | K11: 28.24679557 | L11: 29.2484802 | M11: 29.50344132
A12: WSX | B12: PR19FM1931POST | C12: RCV balance - WN - real | D12: £m | E12: Price Review 2019 | I12: 1018.065656 | J12: 1006.478176 | K12: 1013.672187 | L12: 1004.937514 | M12: 990.056758
A13: WSX | B13: PR19FM2204POST | C13: RCV balance - WWN BEG - nominal | D13: £m | E13: Price Review 2019 | I13: 1922.969553 | J13: 2073.319613 | K13: 2208.221356 | L13: 2336.321127 | M13: 2458.3597
A14: WSX | B14: PR19FM2247POST | C14: Indexation on RCV balance BEG - WWN - nominal | D14: £m | E14: Price Review 2019 | I14: 42.39352916 | J14: 50.59122465 | K14: 55.91814795 | L14: 59.32968382 | M14: 61.85019407
A15: WSX | B15: PR19FM1932POST | C15: RCV balance - WWN - real | D15: £m | E15: Price Review 2019 | I15: 1951.797393 | J15: 2037.947709 | K15: 2112.336219 | L15: 2176.958728 | M15: 2226.235459
A16: WSX | B16: PR19FM2216POST | C16: RCV balance - BR BEG - nominal | D16: £m | E16: Price Review 2019 | I16: 121.3075632 | J16: 117.4227368 | K16: 113.1177431 | L16: 111.8720027 | M16: 108.6947843
A17: WSX | B17: PR19FM2253POST | C17: Indexation on RCV balance BEG - BR - nominal | D17: £m | E17: Price Review 2019 | I17: 2.674330288 | J17: 2.888412278 | K17: 2.905720562 | L17: 2.878153657 | M17: 2.770012774
A18: WSX | B18: PR19FM1933POST | C18: RCV balance - BR - real | D18: £m | E18: Price Review 2019 | I18: 110.5403094 | J18: 104.3953518 | K18: 101.1467476 | L18: 96.25282229 | M18: 94.57109118
A19: WSX | B19: PR19FM2228POST | C19: RCV balance - DMMY BEG - nominal | D19: £m | E19: Price Review 2019 | I19: 0 | J19: 0 | K19: 0 | L19: 0 | M19: 0
A20: WSX | B20: PR19FM2259POST | C20: Indexation on RCV balance BEG - DMMY - nominal | D20: £m | E20: Price Review 2019 | I20: 0 | J20: 0 | K20: 0 | L20: 0 | M20: 0
A21: WSX | B21: PR19FM1934POST | C21: RCV balance - DMMY - real | D21: £m | E21: Price Review 2019 | I21: 0 | J21: 0 | K21: 0 | L21: 0 | M21: 0
A22: WSX | B22: PR19INF0005 | C22: Financial year average indices - CPIH: Financial year average indices | D22: nr | E22: Price Review 2019 | F22: 104.2166667 | G22: 106.4333333 | H22: 108.5523843 | I22: 110.7053733 | J22: 112.9241285 | K22: 115.2674455 | L22: 117.6880619 | M22: 120.1595112

Sheet InpC
A1: =RIGHT(CELL("filename", $A$1), LEN(CELL("filename", $A$1)) - SEARCH("]", CELL("filename", $A$1))) -> InpC
F5: Input | G5: Unit | H5: Comment
E7: Total Comparison Column Differences
E9: Option Name
E11: [don't delete row]
A13: TIME
E15: First date of time ruler | F15: 2019-04-01 | G15: date | H15: Suggested default: (as entered)
E17: Last Pre Forecast Date | F17: 2020-03-31 | G17: date | H17: Suggested default: (as entered)
E19: Acquisition date (midnight) | F19: 2020-03-31 | G19: date | H19: Suggested default: (as entered)
E20: Length of forecast period | F20: 5 | G20: years | H20: Suggested default: (as entered)
E21: Last forecast date | F21: =DATE(YEAR(F19)+F20,MONTH(F19),DAY(F19)) -> 2025-03-31 | G21: date
E24: Operation Start Date (midnight) | F24: 2020-03-31 | G24: date | H24: Suggested default: (as entered)
E25: Operation Finish Date (midnight) | F25: 2025-03-31 | G25: date | H25: Suggested default: (as entered)
E26: First Modelling Column Financial Year Number | F26: 2020 | G26: year | H26: Suggested default: (as entered)
E27: Financial Year End Month Number | F27: 3 | G27: month # | H27: Suggested default: (as entered)
E28: Financial Year Start Month Number | F28: 4 | G28: month # | H28: Suggested default: (as entered)
E30: Modelling period flags
E31: First modelling period end year | F31: 2021 | G31: year | H31: Suggested default: (as entered)
E32: Second modelling period end year | F32: 2022 | G32: year | H32: Suggested default: (as entered)
E33: Third modelling period end year | F33: 2023 | G33: year | H33: Suggested default: (as entered)
E34: Fourth modelling period end year | F34: 2024 | G34: year | H34: Suggested default: (as entered)
E35: Fifth modelling period end year | F35: 2025 | G35: year | H35: Suggested default: (as entered)
A38: NON CHANGEABLE INPUTS
B40: Model Tolerance
E41: Model Check Tolerance Level | F41: 0.001 | G41: tolerance
E43: Model Track Tolerance Level | F43: 0.001 | G43: tolerance
E45: % Model Check Tolerance Level | F45: 1e-05 | G45: %
E47: Mid-point of the AMP | F47: 2.5 | G47: years
A49: FINANCIAL CALC INPUTS
E51: Notional % of 'new' debt over period | F51: 0.2 | G51: percentage | H51: Suggested default: 20% (see: 'PR19 Final Determinations, Allowed Return on Capital Technical Appendix')
E52: Proportion of notional debt subject to indexation - intial balance | G52: percentage | H52: Suggested default: blank
E53: Long-term CPIH assumption | F53: 0.02 | G53: percentage | H53: Suggested default: 2.0% (see: 'PR19 Final Determinations, Allowed Return on Capital Technical Appendix')
E55: Ex-ante 'outperformance wedge' for notional company vs. average A/BBB iBoXX 10+ non-financial index (new debt only) | F55: 0.0015 | G55: percentage | H55: Suggested default: 0.15% (see: 'PR19 Final Determinations, Allowed Return on Capital Technical Appendix')
E56: PR19 appointee allowed return on capital (CPIH-deflated using long-term assumption) | F56: 0.0296 | G56: percentage | H56: Suggested default: 2.96% (see: 'PR19 Final Determinations, Allowed Return on Capital Technical Appendix')
E57: Notional gearing | F57: 0.6 | G57: percentage | H57: Suggested default: 60% (see: 'PR19 Final Determinations, Allowed Return on Capital Technical Appendix')
E59: Units in 100% | F59: 100 | G59: units | H59: Suggested default: 100
E61: PV base date | F61: 2025-03-31 | G61: date | H61: Suggested default: 31 Mar 25
E62: Days in a year | F62: 365 | G62: days | H62: Suggested default: 365
E64: Company-specific adjustment (new debt) | F64: 0.0025 | G64: percentage | H64: Suggested default: 0.25% (see: 'PR19 Final Determinations, Allowed Return on Capital Technical Appendix')
E65: Company-specific adjustment (embedded debt) | F65: 0.0035 | G65: percentage | H65: Suggested default: 0.35% (see: 'PR19 Final Determinations, Allowed Return on Capital Technical Appendix')
E66: Company-specific adjustment applies to Water Resources | F66: NO | G66: Yes / No | H66: Company-specific input
E67: Company-specific adjustment applies to Water Network Plus | F67: NO | G67: Yes / No | H67: Company-specific input
E68: Company-specific adjustment applies to Wastewater Network Plus | F68: NO | G68: Yes / No | H68: Company-specific input
E69: Company-specific adjustment applies to Bioresources | F69: NO | G69: Yes / No | H69: Company-specific input
E70: Company-specific adjustment applies to Dummy | F70: NO | G70: Yes / No | H70: Company-specific input
E74: [don't delete row]

Sheet InpR
A1: =RIGHT(CELL("filename", $A$1), LEN(CELL("filename", $A$1)) - SEARCH("]", CELL("filename", $A$1))) -> InpR
E2: =Time!E$21 -> Model Period BEG | J2: =Time!J$21 -> 2019-04-01 | K2: =Time!K$21 -> 2020-04-01 | L2: =Time!L$21 -> 2021-04-01 | M2: =Time!M$21 -> 2022-04-01 | N2: =Time!N$21 -> 2023-04-01 | O2: =Time!O$21 -> 2024-04-01 | P2: =Time!P$21 -> 2025-04-01
E3: =Time!E$22 -> Model Period END | J3: =Time!J$22 -> 2020-03-31 | K3: =Time!K$22 -> 2021-03-31 | L3: =Time!L$22 -> 2022-03-31 | M3: =Time!M$22 -> 2023-03-31 | N3: =Time!N$22 -> 2024-03-31 | O3: =Time!O$22 -> 2025-03-31 | P3: =Time!P$22 -> 2026-03-31
E4: =Time!E$58 -> Pre Forecast vs Forecast | J4: =Time!J$58 -> Pre Fcst | K4: =Time!K$58 -> Forecast | L4: =Time!L$58 -> Forecast | M4: =Time!M$58 -> Forecast | N4: =Time!N$58 -> Forecast | O4: =Time!O$58 -> Forecast | P4: =Time!P$58 -> Post-Fcst | Q4: Notes:
E5: =Time!E$86 -> Financial Year Ending | J5: =Time!J$86 -> 2020 | K5: =Time!K$86 -> 2021 | L5: =Time!L$86 -> 2022 | M5: =Time!M$86 -> 2023 | N5: =Time!N$86 -> 2024 | O5: =Time!O$86 -> 2025 | P5: =Time!P$86 -> 2026
E6: =Time!E$10 -> Model column counter | J6: =Time!J$10 -> 1 | K6: =Time!K$10 -> 2 | L6: =Time!L$10 -> 3 | M6: =Time!M$10 -> 4 | N6: =Time!N$10 -> 5 | O6: =Time!O$10 -> 6 | P6: =Time!P$10 -> 7
F7: Constant | G7: Unit | H7: Total
E13: [don't delete row] | I13: [range starts]
A14: RCV - Water Resources
E15: Water Resources RCV year start | G15: £m, (CPIH, 2017/18 prices) | K15: =( F_Inputs!I7 + F_Inputs!I8 ) / ( F_Inputs!I22 / F_Inputs!$F$22 ) -> 65.40452189 | L15: =( F_Inputs!J7 + F_Inputs!J8 ) / ( F_Inputs!J22 / F_Inputs!$F$22 ) -> 73.2518193 | M15: =( F_Inputs!K7 + F_Inputs!K8 ) / ( F_Inputs!K22 / F_Inputs!$F$22 ) -> 75.33467622 | N15: =( F_Inputs!L7 + F_Inputs!L8 ) / ( F_Inputs!L22 / F_Inputs!$F$22 ) -> 75.80357095 | O15: =( F_Inputs!M7 + F_Inputs!M8 ) / ( F_Inputs!M22 / F_Inputs!$F$22 ) -> 74.95363668 | Q15: Suggested default: Table 3.4 FD Allowed Revenue appendix ('Total Opening RCV')
E16: Water Resources RCV year end | G16: £m, (CPIH, 2017/18 prices) | K16: =F_Inputs!I9 -> 72.96410987 | L16: =F_Inputs!J9 -> 75.02759833 | M16: =F_Inputs!K9 -> 75.50590023 | N16: =F_Inputs!L9 -> 74.67129301 | O16: =F_Inputs!M9 -> 72.68037519 | Q16: Suggested default: Table 3.4 FD Allowed Revenue appendix ('Total Closing RCV')
A18: RCV - Water Network Plus
E19: Water Network Plus RCV year start | G19: £m, (CPIH, 2017/18 prices) | K19: =( F_Inputs!I10 + F_Inputs!I11 ) / ( F_Inputs!I22 / F_Inputs!$F$22 ) -> 1032.852415 | L19: =( F_Inputs!J10 + F_Inputs!J11 ) / ( F_Inputs!J22 / F_Inputs!$F$22 ) -> 1022.713224 | M19: =( F_Inputs!K10 + F_Inputs!K11 ) / ( F_Inputs!K22 / F_Inputs!$F$22 ) -> 1011.555841 | N19: =( F_Inputs!L10 + F_Inputs!L11 ) / ( F_Inputs!L22 / F_Inputs!$F$22 ) -> 1018.723401 | O19: =( F_Inputs!M10 + F_Inputs!M11 ) / ( F_Inputs!M22 / F_Inputs!$F$22 ) -> 1009.856793 | Q19: Suggested default: Table 3.8 FD Allowed revenue appendix ('Total Opening RCV')
E20: Water Network Plus RCV year end | G20: £m, (CPIH, 2017/18 prices) | K20: =F_Inputs!I12 -> 1018.065656 | L20: =F_Inputs!J12 -> 1006.478176 | M20: =F_Inputs!K12 -> 1013.672187 | N20: =F_Inputs!L12 -> 1004.937514 | O20: =F_Inputs!M12 -> 990.056758 | Q20: Suggested default: Table 3.8 FD Allowed revenue appendix ('Total Closing RCV')
A22: RCV - Wastewater Network Plus
E23: Wastewater Network Plus RCV year start | G23: £m, (CPIH, 2017/18 prices) | K23: =( F_Inputs!I13 + F_Inputs!I14 ) / ( F_Inputs!I22 / F_Inputs!$F$22 ) -> 1850.168453 | L23: =( F_Inputs!J13 + F_Inputs!J14 ) / ( F_Inputs!J22 / F_Inputs!$F$22 ) -> 1960.138287 | M23: =( F_Inputs!K13 + F_Inputs!K14 ) / ( F_Inputs!K22 / F_Inputs!$F$22 ) -> 2047.074705 | N23: =( F_Inputs!L13 + F_Inputs!L14 ) / ( F_Inputs!L22 / F_Inputs!$F$22 ) -> 2121.427934 | O23: =( F_Inputs!M13 + F_Inputs!M14 ) / ( F_Inputs!M22 / F_Inputs!$F$22 ) -> 2185.826756 | Q23: Suggested default: Table 3.12 FD Allowed revenue appendix ('Total Opening RCV')
E24: Wastewater Network Plus RCV year end | G24: £m, (CPIH, 2017/18 prices) | K24: =F_Inputs!I15 -> 1951.797393 | L24: =F_Inputs!J15 -> 2037.947709 | M24: =F_Inputs!K15 -> 2112.336219 | N24: =F_Inputs!L15 -> 2176.958728 | O24: =F_Inputs!M15 -> 2226.235459 | Q24: Suggested default: Table 3.12 FD Allowed revenue appendix ('Total Closing RCV')
A26: RCV - Bioresources
E27: Bioresources RCV year start | G27: £m, (CPIH, 2017/18 prices) | K27: =( F_Inputs!I16 + F_Inputs!I17 ) / ( F_Inputs!I22 / F_Inputs!$F$22 ) -> 116.7150183 | L27: =( F_Inputs!J16 + F_Inputs!J17 ) / ( F_Inputs!J22 / F_Inputs!$F$22 ) -> 111.0340818 | M27: =( F_Inputs!K16 + F_Inputs!K17 ) / ( F_Inputs!K22 / F_Inputs!$F$22 ) -> 104.9002048 | N27: =( F_Inputs!L16 + F_Inputs!L17 ) / ( F_Inputs!L22 / F_Inputs!$F$22 ) -> 101.6150543 | O27: =( F_Inputs!M16 + F_Inputs!M17 ) / ( F_Inputs!M22 / F_Inputs!$F$22 ) -> 96.67557308 | Q27: Suggested default: Table 3.16 FD Allowed revenue appendix ('Total Opening RCV')
E28: Bioresources RCV year end | G28: £m, (CPIH, 2017/18 prices) | K28: =F_Inputs!I18 -> 110.5403094 | L28: =F_Inputs!J18 -> 104.3953518 | M28: =F_Inputs!K18 -> 101.1467476 | N28: =F_Inputs!L18 -> 96.25282229 | O28: =F_Inputs!M18 -> 94.57109118 | Q28: Suggested default: Table 3.16 FD Allowed revenue appendix ('Total Closing RCV')
A30: RCV - Dummy
E31: Dummy RCV year start | G31: £m, (CPIH, 2017/18 prices) | K31: =( F_Inputs!I19 + F_Inputs!I20 ) / ( F_Inputs!I22 / F_Inputs!$F$22 ) -> 0 | L31: =( F_Inputs!J19 + F_Inputs!J20 ) / ( F_Inputs!J22 / F_Inputs!$F$22 ) -> 0 | M31: =( F_Inputs!K19 + F_Inputs!K20 ) / ( F_Inputs!K22 / F_Inputs!$F$22 ) -> 0 | N31: =( F_Inputs!L19 + F_Inputs!L20 ) / ( F_Inputs!L22 / F_Inputs!$F$22 ) -> 0 | O31: =( F_Inputs!M19 + F_Inputs!M20 ) / ( F_Inputs!M22 / F_Inputs!$F$22 ) -> 0 | Q31: Suggested default: Table 3.20 FD Allowed revenue appendix ('Total Opening RCV')
E32: Dummy RCV year end | G32: £m, (CPIH, 2017/18 prices) | K32: =F_Inputs!I21 -> 0 | L32: =F_Inputs!J21 -> 0 | M32: =F_Inputs!K21 -> 0 | N32: =F_Inputs!L21 -> 0 | O32: =F_Inputs!M21 -> 0 | Q32: Suggested default: Table 3.20 FD Allowed revenue appendix ('Total Closing RCV')
A35: COD
E36: Allowed sector new debt cost (not inc. CSA) - final determination (CPIH real) | G36: percentage | K36: 0.0053 | L36: 0.0053 | M36: 0.0053 | N36: 0.0053 | O36: 0.0053 | Q36: Suggested default: 0.53% - Table 1.1. FD Allowed return on capital technical appendix
E37: Allowed sector embedded debt cost (not inc. CSA) - final determination (CPIH real) | G37: percentage | K37: 0.0242 | L37: 0.0242 | M37: 0.0242 | N37: 0.0242 | O37: 0.0242 | Q37: Suggested default: 2.42% - Table 1.1. FD Allowed return on capital technical appendix
E38: Allowed sector issuance and liquidity costs - final determinations | K38: 0.001 | L38: 0.001 | M38: 0.001 | N38: 0.001 | O38: 0.001 | Q38: Suggested default: 0.10% - Table 1.1. FD Allowed return on capital technical appendix
E40: =InpC!E$59 -> Units in 100% | F40: =InpC!F$59 -> 100 | G40: =InpC!G$59 -> units
E41: 1 Year average of iBoxx adjusted for 'outperformance wedge' (base) | G41: Percentage | K41: 0.0201 | L41: 0.023 | M41: 0.0467 | N41: 0.056 | O41: 0.0542
E44: =InpC!E$52 -> Proportion of notional debt subject to indexation - intial balance | F44: =InpC!F$52 -> 0 | G44: =InpC!G$52 -> percentage | I44: =InpC!#REF! ->  | J44: =InpC!I$52 -> 0 | K44: =InpC!J$52 -> 0 | L44: =InpC!K$52 -> 0 | M44: =InpC!L$52 -> 0 | N44: =InpC!M$52 -> 0 | O44: =InpC!N$52 -> 0 | P44: =InpC!O$52 -> 0
E45: =InpC!E$51 -> Notional % of 'new' debt over period | F45: =InpC!F$51 -> 0.2 | G45: =InpC!G$51 -> percentage | I45: =InpC!#REF! ->  | J45: =InpC!I$51 -> 0 | K45: =InpC!J$51 -> 0 | L45: =InpC!K$51 -> 0 | M45: =InpC!L$51 -> 0 | N45: =InpC!M$51 -> 0 | O45: =InpC!N$51 -> 0 | P45: =InpC!O$51 -> 0
E46: =InpC!E$47 -> Mid-point of the AMP | F46: =InpC!F$47 -> 2.5 | G46: =InpC!G$47 -> years | H46: =InpC!H$54 -> 0 | I46: =InpC!#REF! ->  | J46: =InpC!I$54 -> 0 | K46: =InpC!J$54 -> 0 | L46: =InpC!K$54 -> 0 | M46: =InpC!L$54 -> 0 | N46: =InpC!M$54 -> 0 | O46: =InpC!N$54 -> 0 | P46: =InpC!O$54 -> 0
E48: =Time!E$44 -> Last Pre Forecast Flag | F48: =Time!F$44 -> 0 | G48: =Time!G$44 -> flag | H48: =Time!H$44 -> 1 | I48: =Time!I$44 -> 0 | J48: =Time!J$44 -> 1 | K48: =Time!K$44 -> 0 | L48: =Time!L$44 -> 0 | M48: =Time!M$44 -> 0 | N48: =Time!N$44 -> 0 | O48: =Time!O$44 -> 0 | P48: =Time!P$44 -> 0
E50: Proportion of notional debt subject to indexation BEG | G50: Percentage | J50: =I51 -> 0 | K50: =J51 -> 0 | L50: 0.08 | M50: 0.16 | N50: 0.24 | O50: 0.32 | P50: =O51 -> 0.4
E51: Proportion of notional debt subject to indexation END | G51: Percentage | J51: =IF( J48 = 1, $F44, J50 + ($F45 / $F46) ) -> 0 | K51: =IF( K48 = 1, $F44, K50 + ($F45 / $F46) ) -> 0.08 | L51: 0.16 | M51: =IF( M48 = 1, $F44, M50 + ($F45 / $F46) ) -> 0.24 | N51: 0.32 | O51: 0.4 | P51: 0.48
E55: =E$50 -> Proportion of notional debt subject to indexation BEG | F55: =F$50 -> 0 | G55: Percentage | H55: 0 | I55: 0 | J55: 0 | K55: =K$50 -> 0 | L55: 0.08 | M55: 0.16 | N55: 0.24 | O55: 0.32 | P55: 0.4
E56: =E$51 -> Proportion of notional debt subject to indexation END | F56: =F$51 -> 0 | G56: Percentage | H56: 0 | I56: 0 | J56: 0 | K56: 0.08 | L56: 0.16 | M56: 0.24 | N56: 0.32 | O56: 0.4 | P56: 0.48
E57: Proportion of notional debt subject to indexation (year average) | G57: percentage | J57: =IFERROR( AVERAGE( J55:J56), 0) -> 0 | K57: 0.04 | L57: 0.12 | M57: 0.2 | N57: 0.28 | O57: 0.36 | P57: 0.44
E59: CPIH inflation allowance (long-term assumption) | F59: =InpC!F53 -> 0.02 | G59: percentage | K59: =$F$59 -> 0.02 | L59: =$F$59 -> 0.02 | M59: 0.02 | N59: 0.02 | O59: 0.02
B63: Average debt cost weightings
E64: Average debt cost weighting 2021 | G64: Weighting | K64: 1 | L64: 0 | M64: 0 | N64: 0 | O64: 0 | Q64: Suggested default: Leave as populated
E65: Average debt cost weighting 2022 | G65: Weighting | K65: 1 | L65: 0.5 | M65: 0 | N65: 0 | O65: 0 | Q65: Suggested default: Leave as populated
E66: Average debt cost weighting 2023 | G66: Weighting | K66: 1 | L66: 1 | M66: 0.5 | N66: 0 | O66: 0 | Q66: Suggested default: Leave as populated
E67: Average debt cost weighting 2024 | G67: Weighting | K67: 1 | L67: 1 | M67: 1 | N67: 0.5 | O67: 0 | Q67: Suggested default: Leave as populated
E68: Average debt cost weighting 2025 | G68: Weighting | K68: 1 | L68: 1 | M68: 1 | N68: 1 | O68: 0.5 | Q68: Suggested default: Leave as populated
I71: [range ends]

Sheet RCV and post 2020 investment
A1: =RIGHT(CELL("filename", $A$1), LEN(CELL("filename", $A$1)) - SEARCH("]", CELL("filename", $A$1))) -> RCV and post 2020 investment
E2: =Time!E$22 -> Model Period END | J2: =Time!J$22 -> 2020-03-31 | K2: =Time!K$22 -> 2021-03-31 | L2: =Time!L$22 -> 2022-03-31 | M2: =Time!M$22 -> 2023-03-31 | N2: =Time!N$22 -> 2024-03-31 | O2: =Time!O$22 -> 2025-03-31 | P2: =Time!P$22 -> 2026-03-31
E3: =Time!E$58 -> Pre Forecast vs Forecast | J3: =Time!J$58 -> Pre Fcst | K3: =Time!K$58 -> Forecast | L3: =Time!L$58 -> Forecast | M3: =Time!M$58 -> Forecast | N3: =Time!N$58 -> Forecast | O3: =Time!O$58 -> Forecast | P3: =Time!P$58 -> Post-Fcst
E4: =Time!E$86 -> Financial Year Ending | J4: =Time!J$86 -> 2020 | K4: =Time!K$86 -> 2021 | L4: =Time!L$86 -> 2022 | M4: =Time!M$86 -> 2023 | N4: =Time!N$86 -> 2024 | O4: =Time!O$86 -> 2025 | P4: =Time!P$86 -> 2026
E5: =Time!E$10 -> Model column counter | F5: Constant | G5: Unit | H5: Total | J5: =Time!J$10 -> 1 | K5: =Time!K$10 -> 2 | L5: =Time!L$10 -> 3 | M5: =Time!M$10 -> 4 | N5: =Time!N$10 -> 5 | O5: =Time!O$10 -> 6 | P5: =Time!P$10 -> 7
A7: Water Resources
A8: =InpR!A$15 -> 0 | B8: =InpR!B$15 -> 0 | C8: =InpR!C$15 -> 0 | D8: =InpR!D$15 -> 0 | E8: =InpR!E$15 -> Water Resources RCV year start | F8: =InpR!F$15 -> 0 | G8: =InpR!G$15 -> £m, (CPIH, 2017/18 prices) | H8: =InpR!H$15 -> 0 | I8: =InpR!I$15 -> 0 | J8: =InpR!J$15 -> 0 | K8: =InpR!K$15 -> 65.40452189 | L8: =InpR!L$15 -> 73.2518193 | M8: =InpR!M$15 -> 75.33467622 | N8: =InpR!N$15 -> 75.80357095 | O8: =InpR!O$15 -> 74.95363668 | P8: =InpR!P$15 -> 0
A9: =InpR!A$16 -> 0 | B9: =InpR!B$16 -> 0 | C9: =InpR!C$16 -> 0 | D9: =InpR!D$16 -> 0 | E9: =InpR!E$16 -> Water Resources RCV year end | F9: =InpR!F$16 -> 0 | G9: =InpR!G$16 -> £m, (CPIH, 2017/18 prices) | H9: =InpR!H$16 -> 0 | I9: =InpR!I$16 -> 0 | J9: =InpR!J$16 -> 0 | K9: =InpR!K$16 -> 72.96410987 | L9: =InpR!L$16 -> 75.02759833 | M9: =InpR!M$16 -> 75.50590023 | N9: =InpR!N$16 -> 74.67129301 | O9: =InpR!O$16 -> 72.68037519 | P9: =InpR!P$16 -> 0
E10: Water resources asset base for return | G10: £m | J10: =AVERAGE(J8:J9) -> 0 | K10: =AVERAGE(K8:K9) -> 69.18431588 | L10: =AVERAGE(L8:L9) -> 74.13970882 | M10: 75.42028822 | N10: 75.23743198 | O10: 73.81700594 | P10: 0
E12: =InpC!E$57 -> Notional gearing | F12: =InpC!F$57 -> 0.6 | G12: =InpC!G$57 -> percentage
A13: =A$10 -> 0 | B13: =B$10 -> 0 | C13: =C$10 -> 0 | D13: =D$10 -> 0 | E13: =E$10 -> Water resources asset base for return | F13: =F$10 -> 0 | G13: £m | H13: 0 | I13: 0 | J13: 0 | K13: =K$10 -> 69.18431588 | L13: 74.13970882 | M13: 75.42028822 | N13: 75.23743198 | O13: 73.81700594 | P13: 0
E14: Water Resources Notional debt | G14: £m | H14: =SUM(J14:P14) -> 220.6792505 | J14: =$F12 * J13 -> 0 | K14: =$F12 * K13 -> 41.51058953 | L14: 44.48382529 | M14: 45.25217293 | N14: 45.14245919 | O14: 44.29020356 | P14: 0
A16: =A$14 -> 0 | B16: =B$14 -> 0 | C16: =C$14 -> 0 | D16: =D$14 -> 0 | E16: =E$14 -> Water Resources Notional debt | F16: =F$14 -> 0 | G16: £m | H16: 220.6792505 | I16: 0 | J16: 0 | K16: 41.51058953 | L16: 44.48382529 | M16: 45.25217293 | N16: 45.14245919 | O16: 44.29020356 | P16: 0
A17: =InpR!A$57 -> 0 | B17: =InpR!B$57 -> 0 | C17: =InpR!C$57 -> 0 | D17: =InpR!D$57 -> 0 | E17: =InpR!E$57 -> Proportion of notional debt subject to indexation (year average) | F17: =InpR!F$57 -> 0 | G17: =InpR!G$57 -> percentage | H17: =InpR!H$57 -> 0 | I17: =InpR!I$57 -> 0 | J17: =InpR!J$57 -> 0 | K17: =InpR!K$57 -> 0.04 | L17: =InpR!L$57 -> 0.12 | M17: =InpR!M$57 -> 0.2 | N17: =InpR!N$57 -> 0.28 | O17: =InpR!O$57 -> 0.36 | P17: =InpR!P$57 -> 0.44
E18: Water Resources New debt for return | G18: £m | H18: =SUM(J18:O18) -> 44.63327906 | J18: =J16 * J17 -> 0 | K18: 1.660423581 | L18: 5.338059035 | M18: 9.050434587 | N18: 12.63988857 | O18: 15.94447328 | P18: 0
E20: =E$14 -> Water Resources Notional debt | F20: =F$14 -> 0 | G20: £m | H20: 220.6792505 | I20: 0 | J20: 0 | K20: =K$14 -> 41.51058953 | L20: 44.48382529 | M20: 45.25217293 | N20: 45.14245919 | O20: =O$14 -> 44.29020356 | P20: =P$14 -> 0
D21: less | E21: =E$18 -> Water Resources New debt for return | F21: =F$18 -> 0 | G21: £m | H21: 44.63327906 | I21: 0 | J21: 0 | K21: 1.660423581 | L21: 5.338059035 | M21: 9.050434587 | N21: 12.63988857 | O21: 15.94447328 | P21: 0
E22: Water Resources Embedded debt for return | G22: £m | H22: =SUM(J22:O22) -> 176.0459714 | J22: =J20 - J21 -> 0 | K22: =K20 - K21 -> 39.85016595 | L22: 39.14576625 | M22: 36.20173835 | N22: 32.50257061 | O22: 28.34573028 | P22: 0
A24: Water Network Plus
A25: =InpR!A$15 -> 0 | B25: =InpR!B$15 -> 0 | C25: =InpR!C$15 -> 0 | D25: =InpR!D$15 -> 0 | E25: =InpR!E$19 -> Water Network Plus RCV year start | F25: =InpR!F$19 -> 0 | G25: =InpR!G$19 -> £m, (CPIH, 2017/18 prices) | H25: =InpR!H$19 -> 0 | I25: =InpR!I$19 -> 0 | J25: =InpR!J$19 -> 0 | K25: =InpR!K$19 -> 1032.852415 | L25: =InpR!L$19 -> 1022.713224 | M25: =InpR!M$19 -> 1011.555841 | N25: =InpR!N$19 -> 1018.723401 | O25: =InpR!O$19 -> 1009.856793 | P25: =InpR!P$19 -> 0
A26: =InpR!A$16 -> 0 | B26: =InpR!B$16 -> 0 | C26: =InpR!C$16 -> 0 | D26: =InpR!D$16 -> 0 | E26: =InpR!E$20 -> Water Network Plus RCV year end | F26: =InpR!F$20 -> 0 | G26: =InpR!G$20 -> £m, (CPIH, 2017/18 prices) | H26: =InpR!H$20 -> 0 | I26: =InpR!I$20 -> 0 | J26: =InpR!J$20 -> 0 | K26: =InpR!K$20 -> 1018.065656 | L26: =InpR!L$20 -> 1006.478176 | M26: =InpR!M$20 -> 1013.672187 | N26: =InpR!N$20 -> 1004.937514 | O26: =InpR!O$20 -> 990.056758 | P26: =InpR!P$20 -> 0
E27: Water Network Plus asset base for return | G27: £m | J27: =AVERAGE(J25:J26) -> 0 | K27: =AVERAGE(K25:K26) -> 1025.459035 | L27: 1014.5957 | M27: 1012.614014 | N27: 1011.830458 | O27: 999.9567757 | P27: 0
E29: =InpC!E$57 -> Notional gearing | F29: =InpC!F$57 -> 0.6 | G29: =InpC!G$57 -> percentage
A30: =A$10 -> 0 | B30: =B$10 -> 0 | C30: =C$10 -> 0 | D30: =D$10 -> 0 | E30: =E$27 -> Water Network Plus asset base for return | F30: =F$27 -> 0 | G30: £m | H30: 0 | I30: 0 | J30: 0 | K30: =K$27 -> 1025.459035 | L30: 1014.5957 | M30: 1012.614014 | N30: 1011.830458 | O30: 999.9567757 | P30: 0
E31: Water Network Plus Notional debt | G31: =G$10 -> £m | H31: =SUM(J31:P31) -> 3038.673589 | J31: =J30 * $F29 -> 0 | K31: 615.2754213 | L31: 608.7574198 | M31: 607.5684082 | N31: 607.0982746 | O31: 599.9740654 | P31: 0
E33: =E$31 -> Water Network Plus Notional debt | F33: 0 | G33: £m | H33: 3038.673589 | I33: 0 | J33: 0 | K33: 615.2754213 | L33: 608.7574198 | M33: 607.5684082 | N33: 607.0982746 | O33: 599.9740654 | P33: 0
A34: =A$14 -> 0 | B34: =B$14 -> 0 | C34: =C$14 -> 0 | D34: =D$14 -> 0 | E34: =InpR!E$57 -> Proportion of notional debt subject to indexation (year average) | F34: =InpR!F$57 -> 0 | G34: =InpR!G$57 -> percentage | H34: =InpR!H$57 -> 0 | I34: =InpR!I$57 -> 0 | J34: =InpR!J$57 -> 0 | K34: =InpR!K$57 -> 0.04 | L34: =InpR!L$57 -> 0.12 | M34: =InpR!M$57 -> 0.2 | N34: =InpR!N$57 -> 0.28 | O34: =InpR!O$57 -> 0.36 | P34: =InpR!P$57 -> 0.44
A35: =InpR!A$57 -> 0 | B35: =InpR!B$57 -> 0 | C35: =InpR!C$57 -> 0 | D35: =InpR!D$57 -> 0 | E35: Water Network Plus New debt for return | G35: £m | H35: =SUM(J35:O35) -> 605.1537693 | J35: =J33 * J34 -> 0 | K35: 24.61101685 | L35: 73.05089038 | M35: 121.5136816 | N35: 169.9875169 | O35: 215.9906635
E37: =E$31 -> Water Network Plus Notional debt | F37: 0 | G37: £m | H37: 3038.673589 | I37: 0 | J37: 0 | K37: 615.2754213 | L37: 608.7574198 | M37: 607.5684082 | N37: 607.0982746 | O37: 599.9740654 | P37: 0
D38: less | E38: =E$35 -> Water Network Plus New debt for return | F38: =F$35 -> 0 | G38: £m | H38: 605.1537693 | I38: 0 | J38: 0 | K38: 24.61101685 | L38: 73.05089038 | M38: 121.5136816 | N38: 169.9875169 | O38: 215.9906635 | P38: 0
E39: Water Network Plus Embedded debt for return | G39: £m | H39: =SUM(J39:O39) -> 2433.51982 | J39: =J37- J38 -> 0 | K39: 590.6644044 | L39: 535.7065294 | M39: 486.0547265 | N39: 437.1107577 | O39: 383.9834019 | P39: 0
A41: WasteWater Network Plus
A42: =InpR!A$15 -> 0 | B42: =InpR!B$15 -> 0 | C42: =InpR!C$15 -> 0 | D42: =InpR!D$15 -> 0 | E42: =InpR!E$23 -> Wastewater Network Plus RCV year start | F42: =InpR!F$23 -> 0 | G42: =InpR!G$23 -> £m, (CPIH, 2017/18 prices) | H42: =InpR!H$23 -> 0 | I42: =InpR!I$23 -> 0 | J42: =InpR!J$23 -> 0 | K42: =InpR!K$23 -> 1850.168453 | L42: =InpR!L$23 -> 1960.138287 | M42: =InpR!M$23 -> 2047.074705 | N42: =InpR!N$23 -> 2121.427934 | O42: =InpR!O$23 -> 2185.826756 | P42: =InpR!P$23 -> 0
A43: =InpR!A$16 -> 0 | B43: =InpR!B$16 -> 0 | C43: =InpR!C$16 -> 0 | D43: =InpR!D$16 -> 0 | E43: =InpR!E$24 -> Wastewater Network Plus RCV year end | F43: =InpR!F$24 -> 0 | G43: =InpR!G$24 -> £m, (CPIH, 2017/18 prices) | H43: =InpR!H$24 -> 0 | I43: =InpR!I$24 -> 0 | J43: =InpR!J$24 -> 0 | K43: =InpR!K$24 -> 1951.797393 | L43: =InpR!L$24 -> 2037.947709 | M43: =InpR!M$24 -> 2112.336219 | N43: =InpR!N$24 -> 2176.958728 | O43: =InpR!O$24 -> 2226.235459 | P43: =InpR!P$24 -> 0
E44: Watewater Network Plus asset base for return | G44: £m | J44: =AVERAGE(J42:J43) -> 0 | K44: =AVERAGE(K42:K43) -> 1900.982923 | L44: 1999.042998 | M44: 2079.705462 | N44: 2149.193331 | O44: 2206.031108 | P44: 0
E46: =InpC!E$57 -> Notional gearing | F46: =InpC!F$57 -> 0.6 | G46: =InpC!G$57 -> percentage
A47: =A$10 -> 0 | B47: =B$10 -> 0 | C47: =C$10 -> 0 | D47: =D$10 -> 0 | E47: =E$44 -> Watewater Network Plus asset base for return | F47: =F$44 -> 0 | G47: £m | H47: 0 | I47: 0 | J47: 0 | K47: 1900.982923 | L47: 1999.042998 | M47: 2079.705462 | N47: 2149.193331 | O47: 2206.031108 | P47: 0
E48: Wastewater Network Plus Notional debt | G48: =G$10 -> £m | H48: =SUM(J48:P48) -> 6200.973493 | J48: =J47 * $F46 -> 0 | K48: 1140.589754 | L48: 1199.425799 | M48: 1247.823277 | N48: 1289.515999 | O48: 1323.618665 | P48: 0
A50: =A$14 -> 0 | B50: =B$14 -> 0 | C50: =C$14 -> 0 | D50: =D$14 -> 0 | E50: =E$48 -> Wastewater Network Plus Notional debt | F50: =F$48 -> 0 | G50: £m | H50: 6200.973493 | I50: 0 | J50: 0 | K50: 1140.589754 | L50: 1199.425799 | M50: 1247.823277 | N50: 1289.515999 | O50: 1323.618665 | P50: 0
A51: =InpR!A$57 -> 0 | B51: =InpR!B$57 -> 0 | C51: =InpR!C$57 -> 0 | D51: =InpR!D$57 -> 0 | E51: =InpR!E$57 -> Proportion of notional debt subject to indexation (year average) | F51: =InpR!F$57 -> 0 | G51: =InpR!G$57 -> percentage | H51: =InpR!H$57 -> 0 | I51: =InpR!I$57 -> 0 | J51: =InpR!J$57 -> 0 | K51: =InpR!K$57 -> 0.04 | L51: =InpR!L$57 -> 0.12 | M51: =InpR!M$57 -> 0.2 | N51: =InpR!N$57 -> 0.28 | O51: =InpR!O$57 -> 0.36 | P51: =InpR!P$57 -> 0.44
E52: Wastewater Network Plus New debt for return | G52: £m | H52: =SUM(J52:O52) -> 1276.68654 | J52: =J50 * J51 -> 0 | K52: 45.62359015 | L52: 143.9310959 | M52: 249.5646555 | N52: 361.0644796 | O52: 476.5027193
E54: =E$48 -> Wastewater Network Plus Notional debt | F54: =F$48 -> 0 | G54: £m | H54: 6200.973493 | I54: 0 | J54: 0 | K54: 1140.589754 | L54: 1199.425799 | M54: 1247.823277 | N54: 1289.515999 | O54: 1323.618665 | P54: 0
D55: less | E55: =E$52 -> Wastewater Network Plus New debt for return | F55: =F$52 -> 0 | G55: £m | H55: 1276.68654 | I55: 0 | J55: 0 | K55: 45.62359015 | L55: 143.9310959 | M55: 249.5646555 | N55: 361.0644796 | O55: 476.5027193 | P55: 0
E56: Wastewater Network Plus Embedded debt for return | G56: £m | H56: =SUM(J56:O56) -> 4924.286953 | J56: =J54-J55 -> 0 | K56: =K54-K55 -> 1094.966164 | L56: 1055.494703 | M56: 998.2586218 | N56: 928.4515189 | O56: 847.1159453 | P56: 0
A58: Bioresources
A59: =InpR!A$15 -> 0 | B59: =InpR!B$15 -> 0 | C59: =InpR!C$15 -> 0 | D59: =InpR!D$15 -> 0 | E59: =InpR!E$27 -> Bioresources RCV year start | F59: =InpR!F$27 -> 0 | G59: =InpR!G$27 -> £m, (CPIH, 2017/18 prices) | H59: =InpR!H$27 -> 0 | I59: =InpR!I$27 -> 0 | J59: =InpR!J$27 -> 0 | K59: =InpR!K$27 -> 116.7150183 | L59: =InpR!L$27 -> 111.0340818 | M59: =InpR!M$27 -> 104.9002048 | N59: =InpR!N$27 -> 101.6150543 | O59: =InpR!O$27 -> 96.67557308 | P59: =InpR!P$27 -> 0
A60: =InpR!A$16 -> 0 | B60: =InpR!B$16 -> 0 | C60: =InpR!C$16 -> 0 | D60: =InpR!D$16 -> 0 | E60: =InpR!E$28 -> Bioresources RCV year end | F60: =InpR!F$28 -> 0 | G60: =InpR!G$28 -> £m, (CPIH, 2017/18 prices) | H60: =InpR!H$28 -> 0 | I60: =InpR!I$28 -> 0 | J60: =InpR!J$28 -> 0 | K60: =InpR!K$28 -> 110.5403094 | L60: =InpR!L$28 -> 104.3953518 | M60: =InpR!M$28 -> 101.1467476 | N60: =InpR!N$28 -> 96.25282229 | O60: =InpR!O$28 -> 94.57109118 | P60: =InpR!P$28 -> 0
E61: Bioresources asset base for return | G61: £m | J61: =AVERAGE(J59:J60) -> 0 | K61: =AVERAGE(K59:K60) -> 113.6276638 | L61: 107.7147168 | M61: 103.0234762 | N61: 98.93393829 | O61: 95.62333213 | P61: 0
E63: =InpC!E$57 -> Notional gearing | F63: =InpC!F$57 -> 0.6 | G63: =InpC!G$57 -> percentage
A64: =A$10 -> 0 | B64: =B$10 -> 0 | C64: =C$10 -> 0 | D64: =D$10 -> 0 | E64: =E$61 -> Bioresources asset base for return | F64: =F$61 -> 0 | G64: £m | H64: 0 | I64: 0 | J64: 0 | K64: 113.6276638 | L64: 107.7147168 | M64: 103.0234762 | N64: 98.93393829 | O64: 95.62333213 | P64: 0
E65: Bioresources Notional debt | G65: =G$10 -> £m | H65: =SUM(J65:P65) -> 311.3538763 | J65: =J64 * $F63 -> 0 | K65: 68.17659831 | L65: 64.62883007 | M65: 61.8140857 | N65: 59.36036298 | O65: =O64 * $F63 -> 57.37399928 | P65: 0
A67: =A$14 -> 0 | B67: =B$14 -> 0 | C67: =C$14 -> 0 | D67: =D$14 -> 0 | E67: =E$65 -> Bioresources Notional debt | F67: =F$65 -> 0 | G67: £m | H67: 311.3538763 | I67: 0 | J67: 0 | K67: 68.17659831 | L67: 64.62883007 | M67: 61.8140857 | N67: 59.36036298 | O67: 57.37399928 | P67: 0
A68: =InpR!A$57 -> 0 | B68: =InpR!B$57 -> 0 | C68: =InpR!C$57 -> 0 | D68: =InpR!D$57 -> 0 | E68: =InpR!E$57 -> Proportion of notional debt subject to indexation (year average) | F68: =InpR!F$57 -> 0 | G68: =InpR!G$57 -> percentage | H68: =InpR!H$57 -> 0 | I68: =InpR!I$57 -> 0 | J68: =InpR!J$57 -> 0 | K68: =InpR!K$57 -> 0.04 | L68: =InpR!L$57 -> 0.12 | M68: =InpR!M$57 -> 0.2 | N68: =InpR!N$57 -> 0.28 | O68: =InpR!O$57 -> 0.36 | P68: =InpR!P$57 -> 0.44
E69: Bioresources New debt for return | G69: £m | H69: =SUM(J69:O69) -> 60.12088206 | J69: =J67 * J68 -> 0 | K69: 2.727063932 | L69: 7.755459609 | M69: 12.36281714 | N69: 16.62090163 | O69: 20.65463974
E71: =E$65 -> Bioresources Notional debt | F71: =F$65 -> 0 | G71: £m | H71: 311.3538763 | I71: 0 | J71: 0 | K71: 68.17659831 | L71: 64.62883007 | M71: 61.8140857 | N71: 59.36036298 | O71: 57.37399928 | P71: 0
E72: =E$69 -> Bioresources New debt for return | F72: =F$69 -> 0 | G72: £m | H72: 60.12088206 | I72: 0 | J72: 0 | K72: 2.727063932 | L72: 7.755459609 | M72: 12.36281714 | N72: 16.62090163 | O72: 20.65463974 | P72: 0
E73: Bioresources Embedded debt for return | G73: £m | H73: =SUM(J73:O73) -> 251.2329943 | J73: =J71 - J72 -> 0 | K73: =K71 - K72 -> 65.44953437 | L73: 56.87337047 | M73: 49.45126856 | N73: 42.73946134 | O73: 36.71935954 | P73: 0
A75: Dummy
A76: =InpR!A$15 -> 0 | B76: =InpR!B$15 -> 0 | C76: =InpR!C$15 -> 0 | D76: =InpR!D$15 -> 0 | E76: =InpR!E31 -> Dummy RCV year start | F76: =InpR!F$27 -> 0 | G76: =InpR!G$27 -> £m, (CPIH, 2017/18 prices) | H76: =InpR!H$27 -> 0 | I76: =InpR!I$27 -> 0 | J76: =InpR!J$27 -> 0 | K76: =InpR!K31 -> 0 | L76: =InpR!L31 -> 0 | M76: =InpR!M31 -> 0 | N76: =InpR!N31 -> 0 | O76: =InpR!O31 -> 0 | P76: =InpR!P$27 -> 0
A77: =InpR!A$16 -> 0 | B77: =InpR!B$16 -> 0 | C77: =InpR!C$16 -> 0 | D77: =InpR!D$16 -> 0 | E77: =InpR!E32 -> Dummy RCV year end | F77: =InpR!F$28 -> 0 | G77: =InpR!G$28 -> £m, (CPIH, 2017/18 prices) | H77: =InpR!H$28 -> 0 | I77: =InpR!I$28 -> 0 | J77: =InpR!J$28 -> 0 | K77: =InpR!K32 -> 0 | L77: =InpR!L32 -> 0 | M77: =InpR!M32 -> 0 | N77: =InpR!N32 -> 0 | O77: =InpR!O32 -> 0 | P77: =InpR!P$28 -> 0
E78: Dummy asset base for return | G78: £m | J78: =AVERAGE(J76:J77) -> 0 | K78: =AVERAGE(K76:K77) -> 0 | L78: 0 | M78: 0 | N78: 0 | O78: 0 | P78: 0
E80: =InpC!E$57 -> Notional gearing | F80: =InpC!F$57 -> 0.6 | G80: =InpC!G$57 -> percentage
A81: =A$10 -> 0 | B81: =B$10 -> 0 | C81: =C$10 -> 0 | D81: =D$10 -> 0 | E81: =E$78 -> Dummy asset base for return | F81: =F$61 -> 0 | G81: £m | H81: 0 | I81: 0 | J81: 0 | K81: =K78 -> 0 | L81: =L78 -> 0 | M81: 0 | N81: 0 | O81: 0 | P81: 0
E82: Dummy Notional debt | G82: =G$10 -> £m | H82: =SUM(J82:P82) -> 0 | J82: =J81 * $F80 -> 0 | K82: 0 | L82: 0 | M82: 0 | N82: 0 | O82: =O81 * $F80 -> 0 | P82: =P81 * $F80 -> 0
A84: =A$14 -> 0 | B84: =B$14 -> 0 | C84: =C$14 -> 0 | D84: =D$14 -> 0 | E84: =E82 -> Dummy Notional debt | F84: =F$65 -> 0 | G84: £m | H84: 311.3538763 | I84: 0 | J84: 0 | K84: =K82 -> 0 | L84: =L82 -> 0 | M84: 0 | N84: 0 | O84: 0 | P84: 0
A85: =InpR!A$57 -> 0 | B85: =InpR!B$57 -> 0 | C85: =InpR!C$57 -> 0 | D85: =InpR!D$57 -> 0 | E85: =InpR!E$57 -> Proportion of notional debt subject to indexation (year average) | F85: =InpR!F$57 -> 0 | G85: =InpR!G$57 -> percentage | H85: =InpR!H$57 -> 0 | I85: =InpR!I$57 -> 0 | J85: =InpR!J$57 -> 0 | K85: =InpR!K$57 -> 0.04 | L85: =InpR!L$57 -> 0.12 | M85: =InpR!M$57 -> 0.2 | N85: =InpR!N$57 -> 0.28 | O85: =InpR!O$57 -> 0.36 | P85: =InpR!P$57 -> 0.44
E86: Dummy New debt for return | G86: £m | H86: =SUM(J86:O86) -> 0 | J86: =J84 * J85 -> 0 | K86: =K84 * K85 -> 0 | L86: =L84 * L85 -> 0 | M86: =M84 * M85 -> 0 | N86: =N84 * N85 -> 0 | O86: =O84 * O85 -> 0
E88: =E82 -> Dummy Notional debt | F88: =F$65 -> 0 | G88: £m | H88: 311.3538763 | I88: 0 | J88: 0 | K88: =K82 -> 0 | L88: =L82 -> 0 | M88: 0 | N88: 0 | O88: 0 | P88: 0
E89: =E86 -> Dummy New debt for return | F89: =F$69 -> 0 | G89: £m | H89: 60.12088206 | I89: 0 | J89: 0 | K89: =K86 -> 0 | L89: =L86 -> 0 | M89: 0 | N89: 0 | O89: 0 | P89: 0
E90: Dummy Embedded debt for return | G90: £m | H90: =SUM(J90:O90) -> 0 | J90: =J88 - J89 -> 0 | K90: =K88 - K89 -> 0 | L90: 0 | M90: 0 | N90: 0 | O90: 0 | P90: 0

Sheet Cost of Debt
A1: =RIGHT(CELL("filename", $A$1), LEN(CELL("filename", $A$1)) - SEARCH("]", CELL("filename", $A$1))) -> Cost of Debt
J2: =Time!J$22 -> 2020-03-31 | K2: =Time!K$22 -> 2021-03-31 | L2: =Time!L$22 -> 2022-03-31 | M2: =Time!M$22 -> 2023-03-31 | N2: =Time!N$22 -> 2024-03-31 | O2: =Time!O$22 -> 2025-03-31 | P2: =Time!P$22 -> 2026-03-31
J3: =Time!J$58 -> Pre Fcst | K3: =Time!K$58 -> Forecast | L3: =Time!L$58 -> Forecast | M3: =Time!M$58 -> Forecast | N3: =Time!N$58 -> Forecast | O3: =Time!O$58 -> Forecast | P3: =Time!P$58 -> Post-Fcst
E4: =Time!E$86 -> Financial Year Ending | J4: =Time!J$86 -> 2020 | K4: =Time!K$86 -> 2021 | L4: =Time!L$86 -> 2022 | M4: =Time!M$86 -> 2023 | N4: =Time!N$86 -> 2024 | O4: =Time!O$86 -> 2025 | P4: =Time!P$86 -> 2026
E5: =Time!E$10 -> Model column counter | F5: Constant | G5: Unit | H5: Total | J5: =Time!J$10 -> 1 | K5: =Time!K$10 -> 2 | L5: =Time!L$10 -> 3 | M5: =Time!M$10 -> 4 | N5: =Time!N$10 -> 5 | O5: =Time!O$10 -> 6 | P5: =Time!P$10 -> 7
A7: Nominal cost of debt
E8: =Time!E$53 -> Forecast Period Flag | F8: =Time!F$53 -> 0 | G8: =Time!G$53 -> flag | H8: =Time!H$53 -> 5 | I8: =Time!I$53 -> 0 | J8: =Time!J$53 -> 0 | K8: =Time!K$53 -> 1 | L8: =Time!L$53 -> 1 | M8: =Time!M$53 -> 1 | N8: =Time!N$53 -> 1 | O8: =Time!O$53 -> 1 | P8: =Time!P$53 -> 0
E9: =InpR!E$41 -> 1 Year average of iBoxx adjusted for 'outperformance wedge' (base) | F9: =InpR!F$41 -> 0 | G9: =InpR!G$41 -> Percentage | H9: =InpR!H$41 -> 0 | I9: =InpR!I$41 -> 0 | J9: =InpR!J$41 -> 0 | K9: =InpR!K$41 -> 0.0201 | L9: =InpR!L$41 -> 0.023 | M9: =InpR!M$41 -> 0.0467 | N9: =InpR!N$41 -> 0.056 | O9: =InpR!O$41 -> 0.0542 | P9: =InpR!P$41 -> 0
E10: Forecast Period 1 Year average of iBoxx at year end | G10: Percentage | J10: =J8 * J9 -> 0 | K10: 0.0201 | L10: 0.023 | M10: 0.0467 | N10: 0.056 | O10: 0.0542 | P10: 0
E12: =E$10 -> Forecast Period 1 Year average of iBoxx at year end | F12: 0 | G12: Percentage | H12: 0 | I12: 0 | J12: 0 | K12: =K$10 -> 0.0201 | L12: 0.023 | M12: 0.0467 | N12: 0.056 | O12: 0.0542 | P12: 0
E13: =InpR!E59 -> CPIH inflation allowance (long-term assumption) | F13: =InpR!F59 -> 0.02 | G13: =InpR!G59 -> percentage | H13: =InpR!H59 -> 0 | I13: =InpR!I59 -> 0 | J13: =InpR!J59 -> 0 | K13: =InpR!K59 -> 0.02 | L13: =InpR!L59 -> 0.02 | M13: =InpR!M59 -> 0.02 | N13: =InpR!N59 -> 0.02 | O13: =InpR!O59 -> 0.02 | P13: =InpR!P59 -> 0
E14: 1 year real-CPIH average debt cost | G14: Percentage | J14: =(1+J12) / (1+J13) - 1 -> 0 | K14: =(1+K12) / (1+K13) - 1 -> 9.803921569e-05 | L14: 0.002941176471 | M14: 0.02617647059 | N14: 0.03529411765 | O14: 0.03352941176 | P14: 0
B16: Real-CPIH average debt cost by year
E17: =E$14 -> 1 year real-CPIH average debt cost | F17: =F$14 -> 0 | G17: Percentage | H17: 0 | I17: 0 | J17: 0 | K17: 9.803921569e-05 | L17: 0.002941176471 | M17: 0.02617647059 | N17: 0.03529411765 | O17: 0.03352941176 | P17: 0
E18: =InpR!E$64 -> Average debt cost weighting 2021 | F18: =InpR!F$64 -> 0 | G18: =InpR!G$64 -> Weighting | H18: =InpR!H$64 -> 0 | I18: =InpR!I$64 -> 0 | J18: =InpR!J$64 -> 0 | K18: =InpR!K$64 -> 1 | L18: =InpR!L$64 -> 0 | M18: =InpR!M$64 -> 0 | N18: =InpR!N$64 -> 0 | O18: =InpR!O$64 -> 0 | P18: =InpR!P$64 -> 0
E19: =Time!E$92 -> First modelling period flag | F19: =Time!F$92 -> 0 | G19: =Time!G$92 -> flag | H19: =Time!H$92 -> 0 | I19: =Time!I$92 -> 0 | J19: =Time!J$92 -> 0 | K19: =Time!K$92 -> 1 | L19: =Time!L$92 -> 0 | M19: =Time!M$92 -> 0 | N19: =Time!N$92 -> 0 | O19: =Time!O$92 -> 0 | P19: =Time!P$92 -> 0
E20: 1 year real-CPIH average debt cost 2021 | G20: Percentage | J20: =IFERROR(SUMPRODUCT($J18:J18,$J17:J17) / SUM($J18:J18) * J19,0) -> 0 | K20: =IFERROR(SUMPRODUCT($J18:K18,$J17:K17) / SUM($J18:K18) * K19,0) -> 9.803921569e-05 | L20: =IFERROR(SUMPRODUCT($J18:L18,$J17:L17) / SUM($J18:L18) * L19,0) -> 0 | M20: =IFERROR(SUMPRODUCT($J18:M18,$J17:M17) / SUM($J18:M18) * M19,0) -> 0 | N20: =IFERROR(SUMPRODUCT($J18:N18,$J17:N17) / SUM($J18:N18) * N19,0) -> 0 | O20: =IFERROR(SUMPRODUCT($J18:O18,$J17:O17) / SUM($J18:O18) * O19,0) -> 0 | P20: =IFERROR(SUMPRODUCT($J18:P18,$J17:P17) / SUM($J18:P18) * P19,0) -> 0
E22: =E$14 -> 1 year real-CPIH average debt cost | F22: =F$14 -> 0 | G22: Percentage | H22: 0 | I22: 0 | J22: 0 | K22: 9.803921569e-05 | L22: 0.002941176471 | M22: 0.02617647059 | N22: 0.03529411765 | O22: 0.03352941176 | P22: 0
E23: =InpR!E$65 -> Average debt cost weighting 2022 | F23: =InpR!F$65 -> 0 | G23: =InpR!G$65 -> Weighting | H23: =InpR!H$65 -> 0 | I23: =InpR!I$65 -> 0 | J23: =InpR!J$65 -> 0 | K23: =InpR!K$65 -> 1 | L23: =InpR!L$65 -> 0.5 | M23: =InpR!M$65 -> 0 | N23: =InpR!N$65 -> 0 | O23: =InpR!O$65 -> 0 | P23: =InpR!P$65 -> 0
E24: =Time!E$96 -> Second modelling period flag | F24: =Time!F$96 -> 0 | G24: =Time!G$96 -> flag | H24: =Time!H$96 -> 0 | I24: =Time!I$96 -> 0 | J24: =Time!J$96 -> 0 | K24: =Time!K$96 -> 0 | L24: =Time!L$96 -> 1 | M24: =Time!M$96 -> 0 | N24: =Time!N$96 -> 0 | O24: =Time!O$96 -> 0 | P24: =Time!P$96 -> 0
E25: 1 year real-CPIH average debt cost 2022 | G25: Percentage | J25: =IFERROR(SUMPRODUCT($J23:J23,$J22:J22) / SUM($J23:J23) * J24,0) -> 0 | K25: =IFERROR(SUMPRODUCT($J23:K23,$J22:K22) / SUM($J23:K23) * K24,0) -> 0 | L25: =IFERROR(SUMPRODUCT($J23:L23,$J22:L22) / SUM($J23:L23) * L24,0) -> 0.001045751634 | M25: =IFERROR(SUMPRODUCT($J23:M23,$J22:M22) / SUM($J23:M23) * M24,0) -> 0 | N25: =IFERROR(SUMPRODUCT($J23:N23,$J22:N22) / SUM($J23:N23) * N24,0) -> 0 | O25: =IFERROR(SUMPRODUCT($J23:O23,$J22:O22) / SUM($J23:O23) * O24,0) -> 0 | P25: =IFERROR(SUMPRODUCT($J23:P23,$J22:P22) / SUM($J23:P23) * P24,0) -> 0
E27: =E$14 -> 1 year real-CPIH average debt cost | F27: =F$14 -> 0 | G27: Percentage | H27: 0 | I27: 0 | J27: 0 | K27: 9.803921569e-05 | L27: 0.002941176471 | M27: 0.02617647059 | N27: 0.03529411765 | O27: 0.03352941176 | P27: 0
E28: =InpR!E$66 -> Average debt cost weighting 2023 | F28: =InpR!F$66 -> 0 | G28: =InpR!G$66 -> Weighting | H28: =InpR!H$66 -> 0 | I28: =InpR!I$66 -> 0 | J28: =InpR!J$66 -> 0 | K28: =InpR!K$66 -> 1 | L28: =InpR!L$66 -> 1 | M28: =InpR!M$66 -> 0.5 | N28: =InpR!N$66 -> 0 | O28: =InpR!O$66 -> 0 | P28: =InpR!P$66 -> 0
E29: =Time!E$100 -> Third modelling period flag | F29: =Time!F$100 -> 0 | G29: =Time!G$100 -> flag | H29: =Time!H$100 -> 0 | I29: =Time!I$100 -> 0 | J29: =Time!J$100 -> 0 | K29: =Time!K$100 -> 0 | L29: =Time!L$100 -> 0 | M29: =Time!M$100 -> 1 | N29: =Time!N$100 -> 0 | O29: =Time!O$100 -> 0 | P29: =Time!P$100 -> 0
E30: 1 year real-CPIH average debt cost 2023 | G30: Percentage | J30: =IFERROR(SUMPRODUCT($J28:J28,$J27:J27) / SUM($J28:J28) * J29,0) -> 0 | K30: =IFERROR(SUMPRODUCT($J28:K28,$J27:K27) / SUM($J28:K28) * K29,0) -> 0 | L30: =IFERROR(SUMPRODUCT($J28:L28,$J27:L27) / SUM($J28:L28) * L29,0) -> 0 | M30: =IFERROR(SUMPRODUCT($J28:M28,$J27:M27) / SUM($J28:M28) * M29,0) -> 0.006450980392 | N30: =IFERROR(SUMPRODUCT($J28:N28,$J27:N27) / SUM($J28:N28) * N29,0) -> 0 | O30: =IFERROR(SUMPRODUCT($J28:O28,$J27:O27) / SUM($J28:O28) * O29,0) -> 0 | P30: =IFERROR(SUMPRODUCT($J28:P28,$J27:P27) / SUM($J28:P28) * P29,0) -> 0
E32: =E$14 -> 1 year real-CPIH average debt cost | F32: =F$14 -> 0 | G32: Percentage | H32: 0 | I32: 0 | J32: 0 | K32: 9.803921569e-05 | L32: 0.002941176471 | M32: 0.02617647059 | N32: 0.03529411765 | O32: 0.03352941176 | P32: 0
E33: =InpR!E$67 -> Average debt cost weighting 2024 | F33: =InpR!F$67 -> 0 | G33: =InpR!G$67 -> Weighting | H33: =InpR!H$67 -> 0 | I33: =InpR!I$67 -> 0 | J33: =InpR!J$67 -> 0 | K33: =InpR!K$67 -> 1 | L33: =InpR!L$67 -> 1 | M33: =InpR!M$67 -> 1 | N33: =InpR!N$67 -> 0.5 | O33: =InpR!O$67 -> 0 | P33: =InpR!P$67 -> 0
E34: =Time!E$104 -> Fourth modelling period flag | F34: =Time!F$104 -> 0 | G34: =Time!G$104 -> flag | H34: =Time!H$104 -> 0 | I34: =Time!I$104 -> 0 | J34: =Time!J$104 -> 0 | K34: =Time!K$104 -> 0 | L34: =Time!L$104 -> 0 | M34: =Time!M$104 -> 0 | N34: =Time!N$104 -> 1 | O34: =Time!O$104 -> 0 | P34: =Time!P$104 -> 0
E35: 1 year real-CPIH average debt cost 2024 | G35: Percentage | J35: =IFERROR(SUMPRODUCT($J33:J33,$J32:J32) / SUM($J33:J33) * J34,0) -> 0 | K35: =IFERROR(SUMPRODUCT($J33:K33,$J32:K32) / SUM($J33:K33) * K34,0) -> 0 | L35: =IFERROR(SUMPRODUCT($J33:L33,$J32:L32) / SUM($J33:L33) * L34,0) -> 0 | M35: =IFERROR(SUMPRODUCT($J33:M33,$J32:M32) / SUM($J33:M33) * M34,0) -> 0 | N35: =IFERROR(SUMPRODUCT($J33:N33,$J32:N32) / SUM($J33:N33) * N34,0) -> 0.01338935574 | O35: =IFERROR(SUMPRODUCT($J33:O33,$J32:O32) / SUM($J33:O33) * O34,0) -> 0 | P35: =IFERROR(SUMPRODUCT($J33:P33,$J32:P32) / SUM($J33:P33) * P34,0) -> 0
E37: =E$14 -> 1 year real-CPIH average debt cost | F37: =F$14 -> 0 | G37: Percentage | H37: 0 | I37: 0 | J37: 0 | K37: 9.803921569e-05 | L37: 0.002941176471 | M37: 0.02617647059 | N37: 0.03529411765 | O37: 0.03352941176 | P37: 0
E38: =InpR!E$68 -> Average debt cost weighting 2025 | F38: =InpR!F$68 -> 0 | G38: =InpR!G$68 -> Weighting | H38: =InpR!H$68 -> 0 | I38: =InpR!I$68 -> 0 | J38: =InpR!J$68 -> 0 | K38: =InpR!K$68 -> 1 | L38: =InpR!L$68 -> 1 | M38: =InpR!M$68 -> 1 | N38: =InpR!N$68 -> 1 | O38: =InpR!O$68 -> 0.5 | P38: =InpR!P$68 -> 0
E39: =Time!E$108 -> Fifth modelling period flag | F39: =Time!F$108 -> 0 | G39: =Time!G$108 -> flag | H39: =Time!H$108 -> 0 | I39: =Time!I$108 -> 0 | J39: =Time!J$108 -> 0 | K39: =Time!K$108 -> 0 | L39: =Time!L$108 -> 0 | M39: =Time!M$108 -> 0 | N39: =Time!N$108 -> 0 | O39: =Time!O$108 -> 1 | P39: =Time!P$108 -> 0
E40: 1 year real-CPIH average debt cost 2025 | G40: Percentage | J40: =IFERROR(SUMPRODUCT($J38:J38,$J37:J37) / SUM($J38:J38) * J39,0) -> 0 | K40: =IFERROR(SUMPRODUCT($J38:K38,$J37:K37) / SUM($J38:K38) * K39,0) -> 0 | L40: =IFERROR(SUMPRODUCT($J38:L38,$J37:L37) / SUM($J38:L38) * L39,0) -> 0 | M40: =IFERROR(SUMPRODUCT($J38:M38,$J37:M37) / SUM($J38:M38) * M39,0) -> 0 | N40: =IFERROR(SUMPRODUCT($J38:N38,$J37:N37) / SUM($J38:N38) * N39,0) -> 0 | O40: =IFERROR(SUMPRODUCT($J38:O38,$J37:O37) / SUM($J38:O38) * O39,0) -> 0.01806100218 | P40: =IFERROR(SUMPRODUCT($J38:P38,$J37:P37) / SUM($J38:P38) * P39,0) -> 0
E43: =E$20 -> 1 year real-CPIH average debt cost 2021 | F43: =F$20 -> 0 | G43: Percentage | H43: 0 | I43: 0 | J43: 0 | K43: 9.803921569e-05 | L43: 0 | M43: 0 | N43: 0 | O43: 0 | P43: 0
E44: =E$25 -> 1 year real-CPIH average debt cost 2022 | F44: =F$25 -> 0 | G44: Percentage | H44: 0 | I44: 0 | J44: 0 | K44: 0 | L44: 0.001045751634 | M44: 0 | N44: 0 | O44: 0 | P44: 0
E45: =E$30 -> 1 year real-CPIH average debt cost 2023 | F45: =F$30 -> 0 | G45: Percentage | H45: 0 | I45: 0 | J45: 0 | K45: 0 | L45: 0 | M45: 0.006450980392 | N45: 0 | O45: 0 | P45: 0
E46: =E$35 -> 1 year real-CPIH average debt cost 2024 | F46: =F$35 -> 0 | G46: Percentage | H46: 0 | I46: 0 | J46: 0 | K46: 0 | L46: 0 | M46: 0 | N46: 0.01338935574 | O46: 0 | P46: 0
E47: =E$40 -> 1 year real-CPIH average debt cost 2025 | F47: =F$40 -> 0 | G47: Percentage | H47: 0 | I47: 0 | J47: 0 | K47: 0 | L47: 0 | M47: 0 | N47: 0 | O47: 0.01806100218 | P47: 0
E48: Extending trailing average rate | G48: Percentage | J48: =SUM(J43:J47) -> 0 | K48: =SUM(K43:K47) -> 9.803921569e-05 | L48: =SUM(L43:L47) -> 0.001045751634 | M48: 0.006450980392 | N48: 0.01338935574 | O48: 0.01806100218 | P48: 0

Sheet Water resources
A1: =RIGHT(CELL("filename", $A$1), LEN(CELL("filename", $A$1)) - SEARCH("]", CELL("filename", $A$1))) -> Water resources
J2: =Time!J$22 -> 2020-03-31 | K2: =Time!K$22 -> 2021-03-31 | L2: =Time!L$22 -> 2022-03-31 | M2: =Time!M$22 -> 2023-03-31 | N2: =Time!N$22 -> 2024-03-31 | O2: =Time!O$22 -> 2025-03-31 | P2: =Time!P$22 -> 2026-03-31
J3: =Time!J$58 -> Pre Fcst | K3: =Time!K$58 -> Forecast | L3: =Time!L$58 -> Forecast | M3: =Time!M$58 -> Forecast | N3: =Time!N$58 -> Forecast | O3: =Time!O$58 -> Forecast | P3: =Time!P$58 -> Post-Fcst
E4: =Time!E$86 -> Financial Year Ending | J4: =Time!J$86 -> 2020 | K4: =Time!K$86 -> 2021 | L4: =Time!L$86 -> 2022 | M4: =Time!M$86 -> 2023 | N4: =Time!N$86 -> 2024 | O4: =Time!O$86 -> 2025 | P4: =Time!P$86 -> 2026
E5: =Time!E$10 -> Model column counter | F5: Constant | G5: Unit | H5: Total | J5: =Time!J$10 -> 1 | K5: =Time!K$10 -> 2 | L5: =Time!L$10 -> 3 | M5: =Time!M$10 -> 4 | N5: =Time!N$10 -> 5 | O5: =Time!O$10 -> 6 | P5: =Time!P$10 -> 7
A7: COST OF DEBT CALCULATION BASED ON INDEX OUTTURN
E8: Company-specific adjustment flag | F8: =IF(InpC!$F$66="YES",1,0) -> 0 | G8: Flag | K8: =$F$8 -> 0 | L8: =$F$8 -> 0 | M8: 0 | N8: 0 | O8: 0
E9: =InpC!E64 -> Company-specific adjustment (new debt) | F9: =InpC!F64 -> 0.0025 | G9: ='Cost of Debt'!G47 -> Percentage | K9: =$F$9 -> 0.0025 | L9: =$F$9 -> 0.0025 | M9: 0.0025 | N9: 0.0025 | O9: 0.0025 | P9: 0.0025
E10: =InpC!E65 -> Company-specific adjustment (embedded debt) | F10: =InpC!$F$65 -> 0.0035 | G10: ='Cost of Debt'!G48 -> Percentage | K10: =$F$10 -> 0.0035 | L10: =$F$10 -> 0.0035 | M10: =$F$10 -> 0.0035 | N10: =$F$10 -> 0.0035 | O10: =$F$10 -> 0.0035
E11: ='Cost of Debt'!E48 -> Extending trailing average rate | F11: ='Cost of Debt'!F48 -> 0 | G11: ='Cost of Debt'!G48 -> Percentage | H11: ='Cost of Debt'!H48 -> 0 | I11: ='Cost of Debt'!I48 -> 0 | J11: ='Cost of Debt'!J48 -> 0 | K11: ='Cost of Debt'!K48 -> 9.803921569e-05 | L11: ='Cost of Debt'!L48 -> 0.001045751634 | M11: ='Cost of Debt'!M48 -> 0.006450980392 | N11: ='Cost of Debt'!N48 -> 0.01338935574 | O11: ='Cost of Debt'!O48 -> 0.01806100218 | P11: ='Cost of Debt'!P48 -> 0
E12: Extending trailing average rate (after any CSA adjustments) | G12: Percentage | K12: =K11+(K8*K9) -> 9.803921569e-05 | L12: =L11+(L8*L9) -> 0.001045751634 | M12: 0.006450980392 | N12: 0.01338935574 | O12: 0.01806100218 | P12: 0
E13: ='RCV and post 2020 investment'!E18 -> Water Resources New debt for return | F13: ='RCV and post 2020 investment'!F18 -> 0 | G13: ='RCV and post 2020 investment'!G18 -> £m | H13: ='RCV and post 2020 investment'!H18 -> 44.63327906 | I13: ='RCV and post 2020 investment'!I18 -> 0 | J13: ='RCV and post 2020 investment'!J18 -> 0 | K13: ='RCV and post 2020 investment'!K18 -> 1.660423581 | L13: ='RCV and post 2020 investment'!L18 -> 5.338059035 | M13: ='RCV and post 2020 investment'!M18 -> 9.050434587 | N13: ='RCV and post 2020 investment'!N18 -> 12.63988857 | O13: ='RCV and post 2020 investment'!O18 -> 15.94447328 | P13: ='RCV and post 2020 investment'!P52 -> 0
E14: Water resources extending trailing average interest cost | G14: £m | H14: =SUM(J14:O14) -> 0.521342378 | J14: =J11 * J13 -> 0 | K14: =K12 * K13 -> 0.0001627866256 | L14: =L12 * L13 -> 0.005582283958 | M14: 0.05838417606 | N14: 0.1692399646 | O14: 0.2879731667 | P14: 0
E16: ='RCV and post 2020 investment'!E22 -> Water Resources Embedded debt for return | F16: ='RCV and post 2020 investment'!F22 -> 0 | G16: ='RCV and post 2020 investment'!G22 -> £m | H16: ='RCV and post 2020 investment'!H22 -> 176.0459714 | I16: ='RCV and post 2020 investment'!I22 -> 0 | J16: ='RCV and post 2020 investment'!J22 -> 0 | K16: ='RCV and post 2020 investment'!K22 -> 39.85016595 | L16: ='RCV and post 2020 investment'!L22 -> 39.14576625 | M16: ='RCV and post 2020 investment'!M22 -> 36.20173835 | N16: ='RCV and post 2020 investment'!N22 -> 32.50257061 | O16: ='RCV and post 2020 investment'!O22 -> 28.34573028 | P16: ='RCV and post 2020 investment'!P56 -> 0
E17: =InpR!E$37 -> Allowed sector embedded debt cost (not inc. CSA) - final determination (CPIH real) | F17: =InpR!F$37 -> 0 | G17: =InpR!G$37 -> percentage | H17: =InpR!H$37 -> 0 | I17: =InpR!I$37 -> 0 | J17: =InpR!J$37 -> 0 | K17: =InpR!K$37 -> 0.0242 | L17: =InpR!L$37 -> 0.0242 | M17: =InpR!M$37 -> 0.0242 | N17: =InpR!N$37 -> 0.0242 | O17: =InpR!O$37 -> 0.0242 | P17: =InpR!P$37 -> 0
E18: Allowed sector embedded debt cost (after any CSA adjustments) | K18: =K17+(K8*K10) -> 0.0242 | L18: =L17+(L8*L10) -> 0.0242 | M18: 0.0242 | N18: 0.0242 | O18: 0.0242
E19: Water resources Embedded debt interest cost | G19: £m | H19: =SUM(J19:O19) -> 4.260312509 | J19: =J16 * J17 -> 0 | K19: =K16 * K18 -> 0.9643740159 | L19: =L16 * L18 -> 0.9473275434 | M19: 0.876082068 | N19: 0.7865622089 | O19: 0.6859666728 | P19: =P16 * P17 -> 0
E21: Water resources outturn allowed new debt cost (CPIH real) | F21: 0 | G21: Percentage | K21: =K12 -> 9.803921569e-05 | L21: =L12 -> 0.001045751634 | M21: 0.006450980392 | N21: 0.01338935574 | O21: 0.01806100218
E22: Water resources allowed embedded debt cost (CPIH real) | F22: 0 | G22: Percentage | K22: =K18 -> 0.0242 | L22: =L18 -> 0.0242 | M22: 0.0242 | N22: 0.0242 | O22: 0.0242 | P22: =P17 -> 0
E23: Ratio of new to embedded debt for outturn cost of debt allowance | F23: 0 | G23: Percentage | K23: =InpR!K57 -> 0.04 | L23: =InpR!L57 -> 0.12 | M23: =InpR!M57 -> 0.2 | N23: =InpR!N57 -> 0.28 | O23: =InpR!O57 -> 0.36
E24: Water resources outturn allowed cost of overall debt (CPIH real) | F24: 0 | G24: Percentage | K24: =(K23*K21)+(1-K23)*K22 -> 0.02323592157 | L24: =(L23*L21)+(1-L23)*L22 -> 0.0214214902 | M24: =(M23*M21)+(1-M23)*M22 -> 0.02065019608 | N24: =(N23*N21)+(1-N23)*N22 -> 0.02117301961 | O24: =(O23*O21)+(1-O23)*O22 -> 0.02198996078
E25: CPIH inflation (long-term assumption) | F25: 0 | G25: Percentage | K25: =InpR!K59 -> 0.02 | L25: =InpR!L59 -> 0.02 | M25: =InpR!M59 -> 0.02 | N25: =InpR!N59 -> 0.02 | O25: =InpR!O59 -> 0.02
E26: Issuance and liquidity costs | G26: Percentage | K26: =InpR!K38 -> 0.001 | L26: =InpR!L38 -> 0.001 | M26: =InpR!M38 -> 0.001 | N26: =InpR!N38 -> 0.001 | O26: =InpR!O38 -> 0.001
E27: Water resources outturn allowed cost of overall debt (Nominal) | F27: 0 | G27: Percentage | K27: =((1+K24)*(1+K25)-1)+K26 -> 0.04470064 | L27: 0.04284992 | M27: =((1+M24)*(1+M25)-1)+M26 -> 0.0420632 | N27: =((1+N24)*(1+N25)-1)+N26 -> 0.04259648 | O27: =((1+O24)*(1+O25)-1)+O26 -> 0.04342976
E29: =E$14 -> Water resources extending trailing average interest cost | F29: =F$14 -> 0 | G29: £m | H29: 0.521342378 | I29: 0 | J29: 0 | K29: 0.0001627866256 | L29: 0.005582283958 | M29: 0.05838417606 | N29: 0.1692399646 | O29: 0.2879731667 | P29: 0
E30: =E$19 -> Water resources Embedded debt interest cost | F30: =F$19 -> 0 | G30: =G$19 -> £m | H30: 4.260312509 | I30: 0 | J30: 0 | K30: 0.9643740159 | L30: 0.9473275434 | M30: 0.876082068 | N30: 0.7865622089 | O30: 0.6859666728 | P30: 0
E31: Water resources outturn debt allowance | G31: £m | H31: =SUM(J31:O31) -> 4.781654887 | J31: =SUM(J29:J30) -> 0 | K31: 0.9645368025 | L31: 0.9529098273 | M31: 0.9344662441 | N31: 0.9558021735 | O31: 0.9739398395 | P31: 0
A33: FD ALLOWANCE
E34: =InpC!E51 -> Notional % of 'new' debt over period | F34: =InpC!F51 -> 0.2 | G34: =InpC!G51 -> percentage | K34: =$F$34 -> 0.2 | L34: =$F$34 -> 0.2 | M34: 0.2 | N34: 0.2 | O34: 0.2 | P34: =InpR!P36 -> 0
E35: =InpR!E36 -> Allowed sector new debt cost (not inc. CSA) - final determination (CPIH real) | F35: =InpR!F36 -> 0 | G35: =InpR!G36 -> percentage | H35: =InpR!H36 -> 0 | I35: =InpR!I36 -> 0 | J35: =InpR!J36 -> 0 | K35: =InpR!K36 -> 0.0053 | L35: =InpR!L36 -> 0.0053 | M35: =InpR!M36 -> 0.0053 | N35: =InpR!N36 -> 0.0053 | O35: =InpR!O36 -> 0.0053 | P35: =P13 -> 0
E36: Allowed sector cost of new debt (after any CSA adjustments) | K36: =K35+(K8*K9) -> 0.0053 | L36: =L35+(L8*L9) -> 0.0053 | M36: =M35+(M8*M9) -> 0.0053 | N36: =N35+(N8*N9) -> 0.0053 | O36: =O35+(O8*O9) -> 0.0053
E37: =InpR!E37 -> Allowed sector embedded debt cost (not inc. CSA) - final determination (CPIH real) | F37: =InpR!F37 -> 0 | G37: =InpR!G37 -> percentage | H37: =InpR!H37 -> 0 | I37: =InpR!I37 -> 0 | J37: =InpR!J37 -> 0 | K37: =InpR!K37 -> 0.0242 | L37: =InpR!L37 -> 0.0242 | M37: =InpR!M37 -> 0.0242 | N37: =InpR!N37 -> 0.0242 | O37: =InpR!O37 -> 0.0242 | P37: =P34*P35 -> 0
E38: Allowed sector cost of embedded debt (after any CSA adjustments) | K38: =K37+(K8*K10) -> 0.0242 | L38: =L37+(L8*L10) -> 0.0242 | M38: =M37+(M8*M10) -> 0.0242 | N38: =N37+(N8*N10) -> 0.0242 | O38: =O37+(O8*O10) -> 0.0242
E39: ='RCV and post 2020 investment'!E14 -> Water Resources Notional debt | F39: ='RCV and post 2020 investment'!F14 -> 0 | G39: ='RCV and post 2020 investment'!G14 -> £m | H39: ='RCV and post 2020 investment'!H14 -> 220.6792505 | I39: ='RCV and post 2020 investment'!I14 -> 0 | J39: ='RCV and post 2020 investment'!J14 -> 0 | K39: ='RCV and post 2020 investment'!K14 -> 41.51058953 | L39: ='RCV and post 2020 investment'!L14 -> 44.48382529 | M39: ='RCV and post 2020 investment'!M14 -> 45.25217293 | N39: ='RCV and post 2020 investment'!N14 -> 45.14245919 | O39: ='RCV and post 2020 investment'!O14 -> 44.29020356
E40: Water resources initial cost of debt allowance | G40: £m | I40: =I$14 -> 0 | K40: =(K39 * K34 * K36) + (K39 * (1-K34) * K38) -> 0.8476462381 | L40: =(L39 * L34 * L36) + (L39 * (1-L34) * L38) -> 0.9083597124 | M40: 0.9240493713 | N40: 0.9218090166 | O40: 0.9044059568 | P40: =(P39 * $F34 * P35) + (P39 * (1-$F34) * P37) -> 0
P41: =P14 -> 0
A42: RECONCILIATION ADJUSTMENTS | P42: =P40-P41 -> 0
E43: =E$31 -> Water resources outturn debt allowance | F43: =F$31 -> 0 | G43: £m | H43: 4.781654887 | I43: 0 | J43: 0 | K43: 0.9645368025 | L43: 0.9529098273 | M43: 0.9344662441 | N43: 0.9558021735 | O43: 0.9739398395
E44: =E$40 -> Water resources initial cost of debt allowance | F44: =F$40 -> 0 | G44: £m | H44: 0 | I44: 0 | J44: 0 | K44: 0.8476462381 | L44: 0.9083597124 | M44: 0.9240493713 | N44: 0.9218090166 | O44: 0.9044059568
E45: Reconciliation (in-year values) - Water resources | G45: £m | H45: =SUM(J45:O45) -> 0.2753845917 | J45: =J43-J44 -> 0 | K45: 0.1168905644 | L45: 0.04455011491 | M45: 0.01041687275 | N45: 0.03399315691 | O45: 0.06953388272
E47: =InpC!E$61 -> PV base date | F47: =InpC!F$61 -> 2025-03-31 | G47: =InpC!G$61 -> date
E48: =InpC!E$62 -> Days in a year | F48: =InpC!F$62 -> 365 | G48: =InpC!G$62 -> days
E49: =Time!E$22 -> Model Period END | F49: =Time!F$22 -> 0 | G49: =Time!G$22 -> date | H49: =Time!H$22 -> 00:00:00 | I49: =Time!I$22 -> 00:00:00 | J49: =Time!J$22 -> 2020-03-31 | K49: =Time!K$22 -> 2021-03-31 | L49: =Time!L$22 -> 2022-03-31 | M49: =Time!M$22 -> 2023-03-31 | N49: =Time!N$22 -> 2024-03-31 | O49: =Time!O$22 -> 2025-03-31 | P49: =Time!P$22 -> 2026-03-31
E50: Years from valuation date - Water resources | G50: years | J50: =ROUND( ( ( J49 - $F47 ) / $F48 ) * -1, 0) -> 5 | K50: =ROUND( ( ( K49 - $F47 ) / $F48 ) * -1, 0) -> 4 | L50: 3 | M50: 2 | N50: 1 | O50: 0
E52: =InpC!E56 -> PR19 appointee allowed return on capital (CPIH-deflated using long-term assumption) | F52: =InpC!F56 -> 0.0296 | G52: =InpC!G56 -> percentage | K52: =$F$52 -> 0.0296 | L52: =$F$52 -> 0.0296 | M52: 0.0296 | N52: 0.0296 | O52: 0.0296
E53: =E$50 -> Years from valuation date - Water resources | F53: =F$50 -> 0 | G53: years | H53: 0 | I53: 0 | J53: 5 | K53: 4 | L53: 3 | M53: 2 | N53: 1 | O53: 0
E54: Discount factor - Water resources | G54: Factor | J54: =(1+$F52) ^J53 -> 1.157024804 | K54: 1.123761465 | L54: 1.091454414 | M54: 1.06007616 | N54: 1.0296 | O54: 1
E56: =E$45 -> Reconciliation (in-year values) - Water resources | F56: =F$45 -> 0 | G56: £m | H56: 0.2753845917 | I56: 0 | J56: 0 | K56: 0.1168905644 | L56: 0.04455011491 | M56: 0.01041687275 | N56: 0.03399315691 | O56: 0.06953388272
E57: =E$54 -> Discount factor - Water resources | F57: =F$54 -> 0 | G57: Factor | H57: 0 | I57: 0 | J57: 1.157024804 | K57: 1.123761465 | L57: 1.091454414 | M57: 1.06007616 | N57: 1.0296 | O57: 1
E58: Discounted reconciliation (in-year values) Water resources | G58: £m | K58: =K57*K56 -> 0.1313571119 | L58: =L57*L56 -> 0.04862441958 | M58: =M57*M56 -> 0.01104267846 | N58: =N57*N56 -> 0.03499935436 | O58: =O57*O56 -> 0.06953388272
E60: =E$58 -> Discounted reconciliation (in-year values) Water resources | F60: =F$58 -> 0 | G60: £m | H60: 0 | I60: 0 | J60: 0 | K60: 0.1313571119 | L60: 0.04862441958 | M60: 0.01104267846 | N60: 0.03499935436 | O60: 0.06953388272
E61: Total value of reconciliation (31 March 2025 present values): Water resources | G61: £m | H61: =SUM(K60:O60) -> 0.295557447

Sheet Water network +
A1: =RIGHT(CELL("filename", $A$1), LEN(CELL("filename", $A$1)) - SEARCH("]", CELL("filename", $A$1))) -> Water network +
J2: =Time!J$22 -> 2020-03-31 | K2: =Time!K$22 -> 2021-03-31 | L2: =Time!L$22 -> 2022-03-31 | M2: =Time!M$22 -> 2023-03-31 | N2: =Time!N$22 -> 2024-03-31 | O2: =Time!O$22 -> 2025-03-31 | P2: =Time!P$22 -> 2026-03-31
J3: =Time!J$58 -> Pre Fcst | K3: =Time!K$58 -> Forecast | L3: =Time!L$58 -> Forecast | M3: =Time!M$58 -> Forecast | N3: =Time!N$58 -> Forecast | O3: =Time!O$58 -> Forecast | P3: =Time!P$58 -> Post-Fcst
E4: =Time!E$86 -> Financial Year Ending | J4: =Time!J$86 -> 2020 | K4: =Time!K$86 -> 2021 | L4: =Time!L$86 -> 2022 | M4: =Time!M$86 -> 2023 | N4: =Time!N$86 -> 2024 | O4: =Time!O$86 -> 2025 | P4: =Time!P$86 -> 2026
E5: =Time!E$10 -> Model column counter | F5: Constant | G5: Unit | H5: Total | J5: =Time!J$10 -> 1 | K5: =Time!K$10 -> 2 | L5: =Time!L$10 -> 3 | M5: =Time!M$10 -> 4 | N5: =Time!N$10 -> 5 | O5: =Time!O$10 -> 6 | P5: =Time!P$10 -> 7
A7: COST OF DEBT CALCULATION BASED ON INDEX OUTTURN
E8: Company-specific adjustment flag | F8: =IF(InpC!$F$67="YES",1,0) -> 0 | G8: Flag | K8: =$F$8 -> 0 | L8: =$F$8 -> 0 | M8: 0 | N8: 0 | O8: 0
E9: =InpC!E64 -> Company-specific adjustment (new debt) | F9: =InpC!F64 -> 0.0025 | G9: ='Cost of Debt'!G47 -> Percentage | K9: =$F$9 -> 0.0025 | L9: =$F$9 -> 0.0025 | M9: 0.0025 | N9: 0.0025 | O9: 0.0025
E10: =InpC!E65 -> Company-specific adjustment (embedded debt) | F10: =InpC!$F$65 -> 0.0035 | G10: ='Cost of Debt'!G48 -> Percentage | K10: =$F$10 -> 0.0035 | L10: =$F$10 -> 0.0035 | M10: =$F$10 -> 0.0035 | N10: =$F$10 -> 0.0035 | O10: =$F$10 -> 0.0035
E11: ='Cost of Debt'!E48 -> Extending trailing average rate | F11: ='Cost of Debt'!F48 -> 0 | G11: ='Cost of Debt'!G48 -> Percentage | H11: ='Cost of Debt'!H48 -> 0 | I11: ='Cost of Debt'!I48 -> 0 | J11: ='Cost of Debt'!J48 -> 0 | K11: ='Cost of Debt'!K48 -> 9.803921569e-05 | L11: ='Cost of Debt'!L48 -> 0.001045751634 | M11: ='Cost of Debt'!M48 -> 0.006450980392 | N11: ='Cost of Debt'!N48 -> 0.01338935574 | O11: ='Cost of Debt'!O48 -> 0.01806100218 | P11: ='Cost of Debt'!P48 -> 0
E12: Extending trailing average rate (after any CSA adjustments) | G12: Percentage | K12: =K11+(K8*K9) -> 9.803921569e-05 | L12: =L11+(L8*L9) -> 0.001045751634 | M12: 0.006450980392 | N12: 0.01338935574 | O12: 0.01806100218 | P12: 0
E13: ='RCV and post 2020 investment'!E35 -> Water Network Plus New debt for return | F13: ='RCV and post 2020 investment'!F35 -> 0 | G13: ='RCV and post 2020 investment'!G35 -> £m | H13: ='RCV and post 2020 investment'!H35 -> 605.1537693 | I13: ='RCV and post 2020 investment'!I35 -> 0 | J13: ='RCV and post 2020 investment'!J35 -> 0 | K13: ='RCV and post 2020 investment'!K35 -> 24.61101685 | L13: ='RCV and post 2020 investment'!L35 -> 73.05089038 | M13: ='RCV and post 2020 investment'!M35 -> 121.5136816 | N13: ='RCV and post 2020 investment'!N35 -> 169.9875169 | O13: ='RCV and post 2020 investment'!O35 -> 215.9906635 | P13: ='RCV and post 2020 investment'!P35 -> 0
E14: Water network + extending trailing average interest cost | G14: £m | H14: =SUM(J14:O14) -> 7.039719491 | J14: =J11 * J13 -> 0 | K14: =K12 * K13 -> 0.002412844789 | L14: =L12 * L13 -> 0.07639308798 | M14: 0.7838823776 | N14: 2.276023335 | O14: 3.901007845 | P14: 0
E16: ='RCV and post 2020 investment'!E39 -> Water Network Plus Embedded debt for return | F16: ='RCV and post 2020 investment'!F39 -> 0 | G16: ='RCV and post 2020 investment'!G39 -> £m | H16: ='RCV and post 2020 investment'!H39 -> 2433.51982 | I16: ='RCV and post 2020 investment'!I39 -> 0 | J16: ='RCV and post 2020 investment'!J39 -> 0 | K16: ='RCV and post 2020 investment'!K39 -> 590.6644044 | L16: ='RCV and post 2020 investment'!L39 -> 535.7065294 | M16: ='RCV and post 2020 investment'!M39 -> 486.0547265 | N16: ='RCV and post 2020 investment'!N39 -> 437.1107577 | O16: ='RCV and post 2020 investment'!O39 -> 383.9834019 | P16: ='RCV and post 2020 investment'!P56 -> 0
E17: =InpR!E$37 -> Allowed sector embedded debt cost (not inc. CSA) - final determination (CPIH real) | F17: =InpR!F$37 -> 0 | G17: =InpR!G$37 -> percentage | H17: =InpR!H$37 -> 0 | I17: =InpR!I$37 -> 0 | J17: =InpR!J$37 -> 0 | K17: =InpR!K$37 -> 0.0242 | L17: =InpR!L$37 -> 0.0242 | M17: =InpR!M$37 -> 0.0242 | N17: =InpR!N$37 -> 0.0242 | O17: =InpR!O$37 -> 0.0242 | P17: =InpR!P$37 -> 0
E18: Allowed sector embedded debt cost (after any CSA adjustments) | K18: =K17+(K8*K10) -> 0.0242 | L18: =L17+(L8*L10) -> 0.0242 | M18: 0.0242 | N18: 0.0242 | O18: 0.0242
E19: Water network + Embedded debt interest cost | G19: £m | H19: =SUM(J19:O19) -> 58.89117964 | J19: =J16 * J17 -> 0 | K19: =K16 * K18 -> 14.29407859 | L19: =L16 * L18 -> 12.96409801 | M19: 11.76252438 | N19: 10.57808034 | O19: 9.292398325 | P19: =P16 * P17 -> 0
E21: Water network + outturn allowed new debt cost (CPIH real) | F21: 0 | G21: Percentage | K21: =K12 -> 9.803921569e-05 | L21: =L12 -> 0.001045751634 | M21: 0.006450980392 | N21: 0.01338935574 | O21: 0.01806100218
E22: Water network + allowed embedded debt cost (CPIH real) | F22: 0 | G22: Percentage | K22: =K18 -> 0.0242 | L22: =L18 -> 0.0242 | M22: 0.0242 | N22: 0.0242 | O22: 0.0242 | P22: =P17 -> 0
E23: Ratio of new to embedded debt for outturn cost of debt allowance | F23: 0 | G23: Percentage | K23: =InpR!K57 -> 0.04 | L23: =InpR!L57 -> 0.12 | M23: =InpR!M57 -> 0.2 | N23: =InpR!N57 -> 0.28 | O23: =InpR!O57 -> 0.36
E24: Water network + outturn allowed cost of overall debt (CPIH real) | F24: 0 | G24: Percentage | K24: =(K23*K21)+(1-K23)*K22 -> 0.02323592157 | L24: =(L23*L21)+(1-L23)*L22 -> 0.0214214902 | M24: =(M23*M21)+(1-M23)*M22 -> 0.02065019608 | N24: =(N23*N21)+(1-N23)*N22 -> 0.02117301961 | O24: =(O23*O21)+(1-O23)*O22 -> 0.02198996078
E25: CPIH inflation (long-term assumption) | F25: 0 | G25: Percentage | K25: =InpR!K59 -> 0.02 | L25: =InpR!L59 -> 0.02 | M25: =InpR!M59 -> 0.02 | N25: =InpR!N59 -> 0.02 | O25: =InpR!O59 -> 0.02
E26: Issuance and liquidity costs | G26: Percentage | K26: =InpR!K38 -> 0.001 | L26: =InpR!L38 -> 0.001 | M26: =InpR!M38 -> 0.001 | N26: =InpR!N38 -> 0.001 | O26: =InpR!O38 -> 0.001
E27: Water network + outturn allowed cost of overall debt (Nominal) | F27: 0 | G27: Percentage | K27: =((1+K24)*(1+K25)-1)+K26 -> 0.04470064 | L27: 0.04284992 | M27: =((1+M24)*(1+M25)-1)+M26 -> 0.0420632 | N27: =((1+N24)*(1+N25)-1)+N26 -> 0.04259648 | O27: 0.04342976
E29: =E$14 -> Water network + extending trailing average interest cost | F29: 0 | G29: £m | H29: 7.039719491 | I29: 0 | J29: 0 | K29: 0.002412844789 | L29: 0.07639308798 | M29: 0.7838823776 | N29: 2.276023335 | O29: 3.901007845 | P29: 0
E30: =E$19 -> Water network + Embedded debt interest cost | F30: =F$19 -> 0 | G30: =G$19 -> £m | H30: 58.89117964 | I30: 0 | J30: 0 | K30: 14.29407859 | L30: 12.96409801 | M30: 11.76252438 | N30: 10.57808034 | O30: 9.292398325 | P30: 0
E31: Water network + outturn debt allowance | G31: £m | H31: =SUM(J31:O31) -> 65.93089913 | J31: =SUM(J29:J30) -> 0 | K31: 14.29649143 | L31: 13.0404911 | M31: 12.54640676 | N31: 12.85410367 | O31: 13.19340617 | P31: 0
A33: FD ALLOWANCE
E34: =InpC!E51 -> Notional % of 'new' debt over period | F34: =InpC!F51 -> 0.2 | G34: =InpC!G51 -> percentage | K34: =$F$34 -> 0.2 | L34: =$F$34 -> 0.2 | M34: 0.2 | N34: 0.2 | O34: 0.2 | P34: =InpR!P36 -> 0
E35: =InpR!E36 -> Allowed sector new debt cost (not inc. CSA) - final determination (CPIH real) | F35: =InpR!F36 -> 0 | G35: =InpR!G36 -> percentage | H35: =InpR!H36 -> 0 | I35: =InpR!I36 -> 0 | J35: =InpR!J36 -> 0 | K35: =InpR!K36 -> 0.0053 | L35: =InpR!L36 -> 0.0053 | M35: =InpR!M36 -> 0.0053 | N35: =InpR!N36 -> 0.0053 | O35: =InpR!O36 -> 0.0053 | P35: =P13 -> 0
E36: Allowed sector cost of new debt (after any CSA adjustments) | K36: =K35+(K8*K9) -> 0.0053 | L36: =L35+(L8*L9) -> 0.0053 | M36: =M35+(M8*M9) -> 0.0053 | N36: =N35+(N8*N9) -> 0.0053 | O36: =O35+(O8*O9) -> 0.0053
E37: =InpR!E37 -> Allowed sector embedded debt cost (not inc. CSA) - final determination (CPIH real) | F37: =InpR!F37 -> 0 | G37: =InpR!G37 -> percentage | H37: =InpR!H37 -> 0 | I37: =InpR!I37 -> 0 | J37: =InpR!J37 -> 0 | K37: =InpR!K37 -> 0.0242 | L37: =InpR!L37 -> 0.0242 | M37: =InpR!M37 -> 0.0242 | N37: =InpR!N37 -> 0.0242 | O37: =InpR!O37 -> 0.0242 | P37: =P34*P35 -> 0
E38: Allowed sector cost of embedded debt (after any CSA adjustments) | K38: =K37+(K8*K10) -> 0.0242 | L38: =L37+(L8*L10) -> 0.0242 | M38: =M37+(M8*M10) -> 0.0242 | N38: =N37+(N8*N10) -> 0.0242 | O38: =O37+(O8*O10) -> 0.0242
E39: ='RCV and post 2020 investment'!E31 -> Water Network Plus Notional debt | F39: ='RCV and post 2020 investment'!F31 -> 0 | G39: ='RCV and post 2020 investment'!G31 -> £m | H39: ='RCV and post 2020 investment'!H31 -> 3038.673589 | I39: ='RCV and post 2020 investment'!I31 -> 0 | J39: ='RCV and post 2020 investment'!J31 -> 0 | K39: ='RCV and post 2020 investment'!K31 -> 615.2754213 | L39: ='RCV and post 2020 investment'!L31 -> 608.7574198 | M39: ='RCV and post 2020 investment'!M31 -> 607.5684082 | N39: ='RCV and post 2020 investment'!N31 -> 607.0982746 | O39: ='RCV and post 2020 investment'!O31 -> 599.9740654
E40: Water network + initial cost of debt allowance | G40: £m | I40: =I$14 -> 0 | K40: =(K39 * $K34 * K36) + (K39 * (1-$K34) * K38) -> 12.5639241 | L40: =(L39 * $K34 * L36) + (L39 * (1-$K34) * L38) -> 12.43082651 | M40: 12.4065469 | N40: 12.39694677 | O40: 12.25147042 | P40: =(P39 * $F34 * P35) + (P39 * (1-$F34) * P37) -> 0
P41: =P14 -> 0
A42: RECONCILIATION ADJUSTMENTS | P42: =P40-P41 -> 0
E43: =E$31 -> Water network + outturn debt allowance | F43: =F$31 -> 0 | G43: £m | H43: 65.93089913 | I43: 0 | J43: 0 | K43: 14.29649143 | L43: 13.0404911 | M43: 12.54640676 | N43: 12.85410367 | O43: 13.19340617
E44: =E$40 -> Water network + initial cost of debt allowance | F44: =F$40 -> 0 | G44: £m | H44: 0 | I44: 0 | J44: 0 | K44: 12.5639241 | L44: 12.43082651 | M44: 12.4065469 | N44: 12.39694677 | O44: 12.25147042
E45: Reconciliation (in-year values) - Water network + | G45: £m | H45: =SUM(J45:O45) -> 3.881184441 | J45: =J43-J44 -> 0 | K45: 1.732567329 | L45: 0.6096645877 | M45: 0.1398598649 | N45: 0.4571569046 | O45: 0.9419357543
E47: =InpC!E$61 -> PV base date | F47: =InpC!F$61 -> 2025-03-31 | G47: =InpC!G$61 -> date
E48: =InpC!E$62 -> Days in a year | F48: =InpC!F$62 -> 365 | G48: =InpC!G$62 -> days
E49: =Time!E$22 -> Model Period END | F49: =Time!F$22 -> 0 | G49: =Time!G$22 -> date | H49: =Time!H$22 -> 00:00:00 | I49: =Time!I$22 -> 00:00:00 | J49: =Time!J$22 -> 2020-03-31 | K49: =Time!K$22 -> 2021-03-31 | L49: =Time!L$22 -> 2022-03-31 | M49: =Time!M$22 -> 2023-03-31 | N49: =Time!N$22 -> 2024-03-31 | O49: =Time!O$22 -> 2025-03-31 | P49: =Time!P$22 -> 2026-03-31
E50: Years from valuation date - Water network + | G50: years | J50: =ROUND( ( ( J49 - $F47 ) / $F48 ) * -1, 0) -> 5 | K50: =ROUND( ( ( K49 - $F47 ) / $F48 ) * -1, 0) -> 4 | L50: 3 | M50: 2 | N50: 1 | O50: 0
E52: =InpC!E56 -> PR19 appointee allowed return on capital (CPIH-deflated using long-term assumption) | F52: =InpC!F56 -> 0.0296 | G52: =InpC!G56 -> percentage | K52: =$F$52 -> 0.0296 | L52: =$F$52 -> 0.0296 | M52: 0.0296 | N52: 0.0296 | O52: 0.0296
E53: =E$50 -> Years from valuation date - Water network + | F53: =F$50 -> 0 | G53: years | H53: 0 | I53: 0 | J53: 5 | K53: 4 | L53: 3 | M53: 2 | N53: 1 | O53: 0
E54: Discount factor - Water network + | G54: Factor | J54: =(1+$F52) ^J53 -> 1.157024804 | K54: 1.123761465 | L54: 1.091454414 | M54: 1.06007616 | N54: 1.0296 | O54: 1
E56: =E$45 -> Reconciliation (in-year values) - Water network + | F56: =F$45 -> 0 | G56: £m | H56: 3.881184441 | I56: 0 | J56: 0 | K56: 1.732567329 | L56: 0.6096645877 | M56: 0.1398598649 | N56: 0.4571569046 | O56: 0.9419357543
E57: =E$54 -> Discount factor - Water network + | F57: =F$54 -> 0 | G57: Factor | H57: 0 | I57: 0 | J57: 1.157024804 | K57: 1.123761465 | L57: 1.091454414 | M57: 1.06007616 | N57: 1.0296 | O57: 1
E58: Discounted reconciliation (in-year values) Water network + | G58: £m | K58: =K57*K56 -> 1.9469924 | L58: =L57*L56 -> 0.6654211056 | M58: =M57*M56 -> 0.1482621086 | N58: =N57*N56 -> 0.470688749 | O58: =O57*O56 -> 0.9419357543
E60: =E$58 -> Discounted reconciliation (in-year values) Water network + | F60: =F$58 -> 0 | G60: £m | H60: 0 | I60: 0 | J60: 0 | K60: 1.9469924 | L60: 0.6654211056 | M60: 0.1482621086 | N60: 0.470688749 | O60: 0.9419357543
E61: Total value of reconciliation (31 March 2025 present values): Water network + | G61: £m | H61: =SUM(K60:O60) -> 4.173300118

Sheet Wastewater network +
A1: =RIGHT(CELL("filename", $A$1), LEN(CELL("filename", $A$1)) - SEARCH("]", CELL("filename", $A$1))) -> Wastewater network +
J2: =Time!J$22 -> 2020-03-31 | K2: =Time!K$22 -> 2021-03-31 | L2: =Time!L$22 -> 2022-03-31 | M2: =Time!M$22 -> 2023-03-31 | N2: =Time!N$22 -> 2024-03-31 | O2: =Time!O$22 -> 2025-03-31 | P2: =Time!P$22 -> 2026-03-31
J3: =Time!J$58 -> Pre Fcst | K3: =Time!K$58 -> Forecast | L3: =Time!L$58 -> Forecast | M3: =Time!M$58 -> Forecast | N3: =Time!N$58 -> Forecast | O3: =Time!O$58 -> Forecast | P3: =Time!P$58 -> Post-Fcst
E4: =Time!E$86 -> Financial Year Ending | J4: =Time!J$86 -> 2020 | K4: =Time!K$86 -> 2021 | L4: =Time!L$86 -> 2022 | M4: =Time!M$86 -> 2023 | N4: =Time!N$86 -> 2024 | O4: =Time!O$86 -> 2025 | P4: =Time!P$86 -> 2026
E5: =Time!E$10 -> Model column counter | F5: Constant | G5: Unit | H5: Total | J5: =Time!J$10 -> 1 | K5: =Time!K$10 -> 2 | L5: =Time!L$10 -> 3 | M5: =Time!M$10 -> 4 | N5: =Time!N$10 -> 5 | O5: =Time!O$10 -> 6 | P5: =Time!P$10 -> 7
A7: COST OF DEBT CALCULATION BASED ON INDEX OUTTURN
E8: Company-specific adjustment flag | F8: =IF(InpC!$F$68="YES",1,0) -> 0 | G8: Flag | K8: =$F$8 -> 0 | L8: =$F$8 -> 0 | M8: 0 | N8: 0 | O8: 0
E9: =InpC!E64 -> Company-specific adjustment (new debt) | F9: =InpC!F64 -> 0.0025 | G9: ='Cost of Debt'!G47 -> Percentage | K9: =$F$9 -> 0.0025 | L9: =$F$9 -> 0.0025 | M9: 0.0025 | N9: 0.0025 | O9: 0.0025
E10: =InpC!E65 -> Company-specific adjustment (embedded debt) | F10: =InpC!$F$65 -> 0.0035 | G10: ='Cost of Debt'!G48 -> Percentage | K10: =$F$10 -> 0.0035 | L10: =$F$10 -> 0.0035 | M10: =$F$10 -> 0.0035 | N10: =$F$10 -> 0.0035 | O10: =$F$10 -> 0.0035
E11: ='Cost of Debt'!E48 -> Extending trailing average rate | F11: ='Cost of Debt'!F48 -> 0 | G11: ='Cost of Debt'!G48 -> Percentage | H11: ='Cost of Debt'!H48 -> 0 | I11: ='Cost of Debt'!I48 -> 0 | J11: ='Cost of Debt'!J48 -> 0 | K11: ='Cost of Debt'!K48 -> 9.803921569e-05 | L11: ='Cost of Debt'!L48 -> 0.001045751634 | M11: ='Cost of Debt'!M48 -> 0.006450980392 | N11: ='Cost of Debt'!N48 -> 0.01338935574 | O11: ='Cost of Debt'!O48 -> 0.01806100218 | P11: ='Cost of Debt'!P48 -> 0
E12: Extending trailing average rate (after any CSA adjustments) | G12: Percentage | K12: =K11+(K8*K9) -> 9.803921569e-05 | L12: =L11+(L8*L9) -> 0.001045751634 | M12: 0.006450980392 | N12: 0.01338935574 | O12: 0.01806100218 | P12: 0
E13: ='RCV and post 2020 investment'!E52 -> Wastewater Network Plus New debt for return | F13: ='RCV and post 2020 investment'!F52 -> 0 | G13: ='RCV and post 2020 investment'!G52 -> £m | H13: ='RCV and post 2020 investment'!H52 -> 1276.68654 | I13: ='RCV and post 2020 investment'!I52 -> 0 | J13: ='RCV and post 2020 investment'!J52 -> 0 | K13: ='RCV and post 2020 investment'!K52 -> 45.62359015 | L13: ='RCV and post 2020 investment'!L52 -> 143.9310959 | M13: ='RCV and post 2020 investment'!M52 -> 249.5646555 | N13: ='RCV and post 2020 investment'!N52 -> 361.0644796 | O13: ='RCV and post 2020 investment'!O52 -> 476.5027193 | P13: ='RCV and post 2020 investment'!P52 -> 0
E14: Wastewater network + extending trailing average interest cost | G14: £m | H14: =SUM(J14:O14) -> 15.20546319 | J14: =J11 * J13 -> 0 | K14: =K12 * K13 -> 0.004472900995 | L14: =L12 * L13 -> 0.1505161787 | M14: 1.609936699 | N14: 4.834420763 | O14: 8.606116651 | P14: 0
E16: ='RCV and post 2020 investment'!E56 -> Wastewater Network Plus Embedded debt for return | F16: ='RCV and post 2020 investment'!F56 -> 0 | G16: ='RCV and post 2020 investment'!G56 -> £m | H16: ='RCV and post 2020 investment'!H56 -> 4924.286953 | I16: ='RCV and post 2020 investment'!I56 -> 0 | J16: ='RCV and post 2020 investment'!J56 -> 0 | K16: ='RCV and post 2020 investment'!K56 -> 1094.966164 | L16: ='RCV and post 2020 investment'!L56 -> 1055.494703 | M16: ='RCV and post 2020 investment'!M56 -> 998.2586218 | N16: ='RCV and post 2020 investment'!N56 -> 928.4515189 | O16: ='RCV and post 2020 investment'!O56 -> 847.1159453 | P16: ='RCV and post 2020 investment'!P56 -> 0
E17: =InpR!E$37 -> Allowed sector embedded debt cost (not inc. CSA) - final determination (CPIH real) | F17: =InpR!F$37 -> 0 | G17: =InpR!G$37 -> percentage | H17: =InpR!H$37 -> 0 | I17: =InpR!I$37 -> 0 | J17: =InpR!J$37 -> 0 | K17: =InpR!K$37 -> 0.0242 | L17: =InpR!L$37 -> 0.0242 | M17: =InpR!M$37 -> 0.0242 | N17: =InpR!N$37 -> 0.0242 | O17: =InpR!O$37 -> 0.0242 | P17: =InpR!P$37 -> 0
E18: Allowed sector embedded debt cost (after any CSA adjustments) | K18: =K17+(K8*K10) -> 0.0242 | L18: =L17+(L8*L10) -> 0.0242 | M18: 0.0242 | N18: 0.0242 | O18: 0.0242
E19: Wastewater network + Embedded debt interest cost | G19: £m | H19: =SUM(J19:O19) -> 119.1677443 | J19: =J16 * J17 -> 0 | K19: =K16 * K18 -> 26.49818116 | L19: =L16 * L18 -> 25.54297181 | M19: 24.15785865 | N19: 22.46852676 | O19: 20.50020588 | P19: =P16 * P17 -> 0
E21: Wastewater network + outturn allowed new debt cost (CPIH real) | F21: 0 | G21: Percentage | K21: =K12 -> 9.803921569e-05 | L21: =L12 -> 0.001045751634 | M21: 0.006450980392 | N21: 0.01338935574 | O21: 0.01806100218
E22: Wastewater network + allowed embedded debt cost (CPIH real) | F22: 0 | G22: Percentage | K22: =K18 -> 0.0242 | L22: =L18 -> 0.0242 | M22: 0.0242 | N22: 0.0242 | O22: 0.0242 | P22: =P17 -> 0
E23: Ratio of new to embedded debt for outturn cost of debt allowance | F23: 0 | G23: Percentage | K23: =InpR!K57 -> 0.04 | L23: =InpR!L57 -> 0.12 | M23: =InpR!M57 -> 0.2 | N23: =InpR!N57 -> 0.28 | O23: =InpR!O57 -> 0.36
E24: Wastewater network + outturn allowed cost of overall debt (CPIH real) | F24: 0 | G24: Percentage | K24: =(K23*K21)+(1-K23)*K22 -> 0.02323592157 | L24: =(L23*L21)+(1-L23)*L22 -> 0.0214214902 | M24: =(M23*M21)+(1-M23)*M22 -> 0.02065019608 | N24: =(N23*N21)+(1-N23)*N22 -> 0.02117301961 | O24: =(O23*O21)+(1-O23)*O22 -> 0.02198996078
E25: CPIH inflation (long-term assumption) | F25: 0 | G25: Percentage | K25: =InpR!K59 -> 0.02 | L25: =InpR!L59 -> 0.02 | M25: =InpR!M59 -> 0.02 | N25: =InpR!N59 -> 0.02 | O25: =InpR!O59 -> 0.02
E26: Issuance and liquidity costs | G26: Percentage | K26: =InpR!K38 -> 0.001 | L26: =InpR!L38 -> 0.001 | M26: =InpR!M38 -> 0.001 | N26: =InpR!N38 -> 0.001 | O26: =InpR!O38 -> 0.001
E27: Wastewater network + outturn allowed cost of overall debt (Nominal) | F27: 0 | G27: Percentage | K27: =((1+K24)*(1+K25)-1)+K26 -> 0.04470064 | L27: 0.04284992 | M27: =((1+M24)*(1+M25)-1)+M26 -> 0.0420632 | N27: =((1+N24)*(1+N25)-1)+N26 -> 0.04259648 | O27: 0.04342976
E29: =E$14 -> Wastewater network + extending trailing average interest cost | F29: 0 | G29: £m | H29: 15.20546319 | I29: 0 | J29: 0 | K29: 0.004472900995 | L29: 0.1505161787 | M29: 1.609936699 | N29: 4.834420763 | O29: 8.606116651 | P29: 0
E30: =E$19 -> Wastewater network + Embedded debt interest cost | F30: =F$19 -> 0 | G30: =G$19 -> £m | H30: 119.1677443 | I30: 0 | J30: 0 | K30: 26.49818116 | L30: 25.54297181 | M30: 24.15785865 | N30: 22.46852676 | O30: 20.50020588 | P30: 0
E31: Wastewater network + outturn debt allowance | G31: £m | H31: =SUM(J31:O31) -> 134.3732074 | J31: =SUM(J29:J30) -> 0 | K31: 26.50265406 | L31: 25.69348799 | M31: 25.76779535 | N31: 27.30294752 | O31: 29.10632253 | P31: 0
A33: FD ALLOWANCE
E34: =InpC!E51 -> Notional % of 'new' debt over period | F34: =InpC!F51 -> 0.2 | G34: =InpC!G51 -> percentage | K34: =$F$34 -> 0.2 | L34: =$F$34 -> 0.2 | M34: 0.2 | N34: 0.2 | O34: 0.2 | P34: =InpR!P36 -> 0
E35: =InpR!E36 -> Allowed sector new debt cost (not inc. CSA) - final determination (CPIH real) | F35: =InpR!F36 -> 0 | G35: =InpR!G36 -> percentage | H35: =InpR!H36 -> 0 | I35: =InpR!I36 -> 0 | J35: =InpR!J36 -> 0 | K35: =InpR!K36 -> 0.0053 | L35: =InpR!L36 -> 0.0053 | M35: =InpR!M36 -> 0.0053 | N35: =InpR!N36 -> 0.0053 | O35: =InpR!O36 -> 0.0053 | P35: =P13 -> 0
E36: Allowed sector cost of new debt (after any CSA adjustments) | K36: =K35+(K8*K9) -> 0.0053 | L36: =L35+(L8*L9) -> 0.0053 | M36: =M35+(M8*M9) -> 0.0053 | N36: =N35+(N8*N9) -> 0.0053 | O36: =O35+(O8*O9) -> 0.0053
E37: =InpR!E37 -> Allowed sector embedded debt cost (not inc. CSA) - final determination (CPIH real) | F37: =InpR!F37 -> 0 | G37: =InpR!G37 -> percentage | H37: =InpR!H37 -> 0 | I37: =InpR!I37 -> 0 | J37: =InpR!J37 -> 0 | K37: =InpR!K37 -> 0.0242 | L37: =InpR!L37 -> 0.0242 | M37: =InpR!M37 -> 0.0242 | N37: =InpR!N37 -> 0.0242 | O37: =InpR!O37 -> 0.0242 | P37: =P34*P35 -> 0
E38: Allowed sector cost of embedded debt (after any CSA adjustments) | K38: =K37+(K8*K10) -> 0.0242 | L38: =L37+(L8*L10) -> 0.0242 | M38: =M37+(M8*M10) -> 0.0242 | N38: =N37+(N8*N10) -> 0.0242 | O38: =O37+(O8*O10) -> 0.0242
E39: ='RCV and post 2020 investment'!E48 -> Wastewater Network Plus Notional debt | F39: ='RCV and post 2020 investment'!F48 -> 0 | G39: ='RCV and post 2020 investment'!G48 -> £m | H39: ='RCV and post 2020 investment'!H48 -> 6200.973493 | I39: ='RCV and post 2020 investment'!I48 -> 0 | J39: ='RCV and post 2020 investment'!J48 -> 0 | K39: ='RCV and post 2020 investment'!K48 -> 1140.589754 | L39: ='RCV and post 2020 investment'!L48 -> 1199.425799 | M39: ='RCV and post 2020 investment'!M48 -> 1247.823277 | N39: ='RCV and post 2020 investment'!N48 -> 1289.515999 | O39: ='RCV and post 2020 investment'!O48 -> 1323.618665
E40: Wastewater network + initial cost of debt allowance | G40: £m | I40: =I$14 -> 0 | K40: =(K39 * $K34 * K36) + (K39 * (1-$K34) * K38) -> 23.29084277 | L40: =(L39 * $K34 * L36) + (L39 * (1-$K34) * L38) -> 24.49227481 | M40: 25.48055132 | N40: 26.33191669 | O40: 27.02829313 | P40: =(P39 * $F34 * P35) + (P39 * (1-$F34) * P37) -> 0
P41: =P14 -> 0
A42: RECONCILIATION ADJUSTMENTS | P42: =P40-P41 -> 0
E43: =E$31 -> Wastewater network + outturn debt allowance | F43: =F$31 -> 0 | G43: £m | H43: 134.3732074 | I43: 0 | J43: 0 | K43: 26.50265406 | L43: 25.69348799 | M43: 25.76779535 | N43: 27.30294752 | O43: 29.10632253
E44: =E$40 -> Wastewater network + initial cost of debt allowance | F44: =F$40 -> 0 | G44: £m | H44: 0 | I44: 0 | J44: 0 | K44: 23.29084277 | L44: 24.49227481 | M44: 25.48055132 | N44: 26.33191669 | O44: 27.02829313
E45: Reconciliation (in-year values) - Wastewater network + | G45: £m | H45: =SUM(J45:O45) -> 7.74932872 | J45: =J43-J44 -> 0 | K45: 3.211811289 | L45: 1.201213178 | M45: 0.287244025 | N45: 0.9710308315 | O45: 2.078029397
E47: =InpC!E$61 -> PV base date | F47: =InpC!F$61 -> 2025-03-31 | G47: =InpC!G$61 -> date
E48: =InpC!E$62 -> Days in a year | F48: =InpC!F$62 -> 365 | G48: =InpC!G$62 -> days
E49: =Time!E$22 -> Model Period END | F49: =Time!F$22 -> 0 | G49: =Time!G$22 -> date | H49: =Time!H$22 -> 00:00:00 | I49: =Time!I$22 -> 00:00:00 | J49: =Time!J$22 -> 2020-03-31 | K49: =Time!K$22 -> 2021-03-31 | L49: =Time!L$22 -> 2022-03-31 | M49: =Time!M$22 -> 2023-03-31 | N49: =Time!N$22 -> 2024-03-31 | O49: =Time!O$22 -> 2025-03-31 | P49: =Time!P$22 -> 2026-03-31
E50: Years from valuation date - Wastewater network + | G50: years | J50: =ROUND( ( ( J49 - $F47 ) / $F48 ) * -1, 0) -> 5 | K50: =ROUND( ( ( K49 - $F47 ) / $F48 ) * -1, 0) -> 4 | L50: 3 | M50: 2 | N50: 1 | O50: 0
E52: =InpC!E56 -> PR19 appointee allowed return on capital (CPIH-deflated using long-term assumption) | F52: =InpC!F56 -> 0.0296 | G52: =InpC!G56 -> percentage | K52: =$F$52 -> 0.0296 | L52: =$F$52 -> 0.0296 | M52: 0.0296 | N52: 0.0296 | O52: 0.0296
E53: =E$50 -> Years from valuation date - Wastewater network + | F53: =F$50 -> 0 | G53: years | H53: 0 | I53: 0 | J53: 5 | K53: 4 | L53: 3 | M53: 2 | N53: 1 | O53: 0
E54: Discount factor - Wastewater network + | G54: Factor | J54: =(1+$F52) ^J53 -> 1.157024804 | K54: 1.123761465 | L54: 1.091454414 | M54: 1.06007616 | N54: 1.0296 | O54: 1
E56: =E$45 -> Reconciliation (in-year values) - Wastewater network + | F56: =F$45 -> 0 | G56: £m | H56: 7.74932872 | I56: 0 | J56: 0 | K56: 3.211811289 | L56: 1.201213178 | M56: 0.287244025 | N56: 0.9710308315 | O56: 2.078029397
E57: =E$54 -> Discount factor - Wastewater network + | F57: =F$54 -> 0 | G57: Factor | H57: 0 | I57: 0 | J57: 1.157024804 | K57: 1.123761465 | L57: 1.091454414 | M57: 1.06007616 | N57: 1.0296 | O57: 1
E58: Discounted reconciliation (in-year values) Wastewater network + | G58: £m | K58: =K57*K56 -> 3.609309759 | L58: =L57*L56 -> 1.311069426 | M58: =M57*M56 -> 0.304500543 | N58: =N57*N56 -> 0.9997733441 | O58: =O57*O56 -> 2.078029397
E60: =E$58 -> Discounted reconciliation (in-year values) Wastewater network + | F60: =F$58 -> 0 | G60: £m | H60: 0 | I60: 0 | J60: 0 | K60: 3.609309759 | L60: 1.311069426 | M60: 0.304500543 | N60: 0.9997733441 | O60: 2.078029397
E61: Total value of reconciliation (31 March 2025 present values): Wastewater network + | G61: £m | H61: =SUM(K60:O60) -> 8.302682469

Sheet Bioresources
A1: =RIGHT(CELL("filename", $A$1), LEN(CELL("filename", $A$1)) - SEARCH("]", CELL("filename", $A$1))) -> Bioresources
J2: =Time!J$22 -> 2020-03-31 | K2: =Time!K$22 -> 2021-03-31 | L2: =Time!L$22 -> 2022-03-31 | M2: =Time!M$22 -> 2023-03-31 | N2: =Time!N$22 -> 2024-03-31 | O2: =Time!O$22 -> 2025-03-31 | P2: =Time!P$22 -> 2026-03-31
J3: =Time!J$58 -> Pre Fcst | K3: =Time!K$58 -> Forecast | L3: =Time!L$58 -> Forecast | M3: =Time!M$58 -> Forecast | N3: =Time!N$58 -> Forecast | O3: =Time!O$58 -> Forecast | P3: =Time!P$58 -> Post-Fcst
E4: =Time!E$86 -> Financial Year Ending | J4: =Time!J$86 -> 2020 | K4: =Time!K$86 -> 2021 | L4: =Time!L$86 -> 2022 | M4: =Time!M$86 -> 2023 | N4: =Time!N$86 -> 2024 | O4: =Time!O$86 -> 2025 | P4: =Time!P$86 -> 2026
E5: =Time!E$10 -> Model column counter | F5: Constant | G5: Unit | H5: Total | J5: =Time!J$10 -> 1 | K5: =Time!K$10 -> 2 | L5: =Time!L$10 -> 3 | M5: =Time!M$10 -> 4 | N5: =Time!N$10 -> 5 | O5: =Time!O$10 -> 6 | P5: =Time!P$10 -> 7
A7: COST OF DEBT CALCULATION BASED ON INDEX OUTTURN
E8: Company-specific adjustment flag | F8: =IF(InpC!$F$69="YES",1,0) -> 0 | G8: Flag | K8: =$F$8 -> 0 | L8: =$F$8 -> 0 | M8: 0 | N8: 0 | O8: 0
E9: =InpC!E64 -> Company-specific adjustment (new debt) | F9: =InpC!F64 -> 0.0025 | G9: ='Cost of Debt'!G47 -> Percentage | K9: =$F$9 -> 0.0025 | L9: =$F$9 -> 0.0025 | M9: 0.0025 | N9: 0.0025 | O9: 0.0025
E10: =InpC!E65 -> Company-specific adjustment (embedded debt) | F10: =InpC!$F$65 -> 0.0035 | G10: ='Cost of Debt'!G48 -> Percentage | K10: =$F$10 -> 0.0035 | L10: =$F$10 -> 0.0035 | M10: =$F$10 -> 0.0035 | N10: =$F$10 -> 0.0035 | O10: =$F$10 -> 0.0035
E11: ='Cost of Debt'!E48 -> Extending trailing average rate | F11: ='Cost of Debt'!F48 -> 0 | G11: ='Cost of Debt'!G48 -> Percentage | H11: ='Cost of Debt'!H48 -> 0 | I11: ='Cost of Debt'!I48 -> 0 | J11: ='Cost of Debt'!J48 -> 0 | K11: ='Cost of Debt'!K48 -> 9.803921569e-05 | L11: ='Cost of Debt'!L48 -> 0.001045751634 | M11: ='Cost of Debt'!M48 -> 0.006450980392 | N11: ='Cost of Debt'!N48 -> 0.01338935574 | O11: ='Cost of Debt'!O48 -> 0.01806100218 | P11: ='Cost of Debt'!P48 -> 0
E12: Extending trailing average rate (after any CSA adjustments) | G12: Percentage | K12: =K11+(K8*K9) -> 9.803921569e-05 | L12: =L11+(L8*L9) -> 0.001045751634 | M12: 0.006450980392 | N12: 0.01338935574 | O12: 0.01806100218 | P12: 0
E13: ='RCV and post 2020 investment'!E69 -> Bioresources New debt for return | F13: ='RCV and post 2020 investment'!F69 -> 0 | G13: ='RCV and post 2020 investment'!G69 -> £m | H13: ='RCV and post 2020 investment'!H69 -> 60.12088206 | I13: ='RCV and post 2020 investment'!I69 -> 0 | J13: ='RCV and post 2020 investment'!J69 -> 0 | K13: ='RCV and post 2020 investment'!K69 -> 2.727063932 | L13: ='RCV and post 2020 investment'!L69 -> 7.755459609 | M13: ='RCV and post 2020 investment'!M69 -> 12.36281714 | N13: ='RCV and post 2020 investment'!N69 -> 16.62090163 | O13: ='RCV and post 2020 investment'!O69 -> 20.65463974 | P13: ='RCV and post 2020 investment'!P69 -> 0
E14: Bioresources extending trailing average interest cost | G14: £m | H14: =SUM(J14:O14) -> 0.6837165928 | J14: =J11 * J13 -> 0 | K14: =K12 * K13 -> 0.000267359209 | L14: =L12 * L13 -> 0.008110284558 | M14: 0.07975229097 | N14: 0.2225431647 | O14: 0.3730434933 | P14: 0
E16: ='RCV and post 2020 investment'!E73 -> Bioresources Embedded debt for return | F16: ='RCV and post 2020 investment'!F73 -> 0 | G16: ='RCV and post 2020 investment'!G73 -> £m | H16: ='RCV and post 2020 investment'!H73 -> 251.2329943 | I16: ='RCV and post 2020 investment'!I73 -> 0 | J16: ='RCV and post 2020 investment'!J73 -> 0 | K16: ='RCV and post 2020 investment'!K73 -> 65.44953437 | L16: ='RCV and post 2020 investment'!L73 -> 56.87337047 | M16: ='RCV and post 2020 investment'!M73 -> 49.45126856 | N16: ='RCV and post 2020 investment'!N73 -> 42.73946134 | O16: ='RCV and post 2020 investment'!O73 -> 36.71935954 | P16: ='RCV and post 2020 investment'!P73 -> 0
E17: =InpR!E$37 -> Allowed sector embedded debt cost (not inc. CSA) - final determination (CPIH real) | F17: =InpR!F$37 -> 0 | G17: =InpR!G$37 -> percentage | H17: =InpR!H$37 -> 0 | I17: =InpR!I$37 -> 0 | J17: =InpR!J$37 -> 0 | K17: =InpR!K$37 -> 0.0242 | L17: =InpR!L$37 -> 0.0242 | M17: =InpR!M$37 -> 0.0242 | N17: =InpR!N$37 -> 0.0242 | O17: =InpR!O$37 -> 0.0242 | P17: =InpR!P$37 -> 0
E18: Allowed sector embedded debt cost (after any CSA adjustments) | K18: =K17+(K8*K10) -> 0.0242 | L18: =L17+(L8*L10) -> 0.0242 | M18: 0.0242 | N18: 0.0242 | O18: 0.0242
E19: Bioresources Embedded debt interest cost | G19: £m | H19: =SUM(J19:O19) -> 6.079838462 | J19: =J16 * J17 -> 0 | K19: =K16 * K18 -> 1.583878732 | L19: =L16 * L18 -> 1.376335565 | M19: 1.196720699 | N19: 1.034294964 | O19: 0.8886085008 | P19: =P16 * P17 -> 0
E21: Bioresources outturn allowed new debt cost (CPIH real) | F21: 0 | G21: Percentage | K21: =K12 -> 9.803921569e-05 | L21: =L12 -> 0.001045751634 | M21: 0.006450980392 | N21: 0.01338935574 | O21: 0.01806100218
E22: Bioresources allowed embedded debt cost (CPIH real) | F22: 0 | G22: Percentage | K22: =K18 -> 0.0242 | L22: =L18 -> 0.0242 | M22: 0.0242 | N22: 0.0242 | O22: 0.0242 | P22: =P17 -> 0
E23: Ratio of new to embedded debt for outturn cost of debt allowance | F23: 0 | G23: Percentage | K23: =InpR!K57 -> 0.04 | L23: =InpR!L57 -> 0.12 | M23: =InpR!M57 -> 0.2 | N23: =InpR!N57 -> 0.28 | O23: =InpR!O57 -> 0.36
E24: Bioresources outturn allowed cost of overall debt (CPIH real) | F24: 0 | G24: Percentage | K24: =(K23*K21)+(1-K23)*K22 -> 0.02323592157 | L24: =(L23*L21)+(1-L23)*L22 -> 0.0214214902 | M24: =(M23*M21)+(1-M23)*M22 -> 0.02065019608 | N24: =(N23*N21)+(1-N23)*N22 -> 0.02117301961 | O24: =(O23*O21)+(1-O23)*O22 -> 0.02198996078
E25: CPIH inflation (long-term assumption) | F25: 0 | G25: Percentage | K25: =InpR!K59 -> 0.02 | L25: =InpR!L59 -> 0.02 | M25: =InpR!M59 -> 0.02 | N25: =InpR!N59 -> 0.02 | O25: =InpR!O59 -> 0.02
E26: Issuance and liquidity costs | G26: Percentage | K26: =InpR!K38 -> 0.001 | L26: =InpR!L38 -> 0.001 | M26: =InpR!M38 -> 0.001 | N26: =InpR!N38 -> 0.001 | O26: =InpR!O38 -> 0.001
E27: Bioresources outturn allowed cost of overall debt (Nominal) | F27: 0 | G27: Percentage | K27: =((1+K24)*(1+K25)-1)+K26 -> 0.04470064 | L27: 0.04284992 | M27: =((1+M24)*(1+M25)-1)+M26 -> 0.0420632 | N27: =((1+N24)*(1+N25)-1)+N26 -> 0.04259648 | O27: 0.04342976
E29: =E$14 -> Bioresources extending trailing average interest cost | F29: 0 | G29: £m | H29: 0.6837165928 | I29: 0 | J29: 0 | K29: 0.000267359209 | L29: 0.008110284558 | M29: 0.07975229097 | N29: 0.2225431647 | O29: 0.3730434933 | P29: 0
E30: =E$19 -> Bioresources Embedded debt interest cost | F30: =F$19 -> 0 | G30: =G$19 -> £m | H30: 6.079838462 | I30: 0 | J30: 0 | K30: 1.583878732 | L30: 1.376335565 | M30: 1.196720699 | N30: 1.034294964 | O30: 0.8886085008 | P30: 0
E31: Bioresources outturn debt allowance | G31: £m | H31: =SUM(J31:O31) -> 6.763555055 | J31: =SUM(J29:J30) -> 0 | K31: 1.584146091 | L31: 1.38444585 | M31: 1.27647299 | N31: 1.256838129 | O31: 1.261651994 | P31: 0
A33: FD ALLOWANCE
E34: =InpC!E51 -> Notional % of 'new' debt over period | F34: =InpC!F51 -> 0.2 | G34: =InpC!G51 -> percentage | K34: =$F$34 -> 0.2 | L34: =$F$34 -> 0.2 | M34: 0.2 | N34: 0.2 | O34: 0.2 | P34: =InpR!P36 -> 0
E35: =InpR!E36 -> Allowed sector new debt cost (not inc. CSA) - final determination (CPIH real) | F35: =InpR!F36 -> 0 | G35: =InpR!G36 -> percentage | H35: =InpR!H36 -> 0 | I35: =InpR!I36 -> 0 | J35: =InpR!J36 -> 0 | K35: =InpR!K36 -> 0.0053 | L35: =InpR!L36 -> 0.0053 | M35: =InpR!M36 -> 0.0053 | N35: =InpR!N36 -> 0.0053 | O35: =InpR!O36 -> 0.0053 | P35: =P13 -> 0
E36: Allowed sector cost of new debt (after any CSA adjustments) | K36: =K35+(K8*K9) -> 0.0053 | L36: =L35+(L8*L9) -> 0.0053 | M36: =M35+(M8*M9) -> 0.0053 | N36: =N35+(N8*N9) -> 0.0053 | O36: =O35+(O8*O9) -> 0.0053
E37: =InpR!E37 -> Allowed sector embedded debt cost (not inc. CSA) - final determination (CPIH real) | F37: =InpR!F37 -> 0 | G37: =InpR!G37 -> percentage | H37: =InpR!H37 -> 0 | I37: =InpR!I37 -> 0 | J37: =InpR!J37 -> 0 | K37: =InpR!K37 -> 0.0242 | L37: =InpR!L37 -> 0.0242 | M37: =InpR!M37 -> 0.0242 | N37: =InpR!N37 -> 0.0242 | O37: =InpR!O37 -> 0.0242 | P37: =P34*P35 -> 0
E38: Allowed sector cost of embedded debt (after any CSA adjustments) | K38: =K37+(K8*K10) -> 0.0242 | L38: =L37+(L8*L10) -> 0.0242 | M38: =M37+(M8*M10) -> 0.0242 | N38: =N37+(N8*N10) -> 0.0242 | O38: =O37+(O8*O10) -> 0.0242
E39: ='RCV and post 2020 investment'!E65 -> Bioresources Notional debt | F39: ='RCV and post 2020 investment'!F65 -> 0 | G39: ='RCV and post 2020 investment'!G65 -> £m | H39: ='RCV and post 2020 investment'!H65 -> 311.3538763 | I39: ='RCV and post 2020 investment'!I65 -> 0 | J39: ='RCV and post 2020 investment'!J65 -> 0 | K39: ='RCV and post 2020 investment'!K65 -> 68.17659831 | L39: ='RCV and post 2020 investment'!L65 -> 64.62883007 | M39: ='RCV and post 2020 investment'!M65 -> 61.8140857 | N39: ='RCV and post 2020 investment'!N65 -> 59.36036298 | O39: ='RCV and post 2020 investment'!O65 -> 57.37399928
E40: Bioresources initial cost of debt allowance | G40: £m | I40: =I$14 -> 0 | K40: =(K39 * $K34 * K36) + (K39 * (1-$K34) * K38) -> 1.392166137 | L40: =(L39 * $K34 * L36) + (L39 * (1-$K34) * L38) -> 1.31972071 | M40: 1.26224363 | N40: 1.212138612 | O40: 1.171577065 | P40: =(P39 * $F34 * P35) + (P39 * (1-$F34) * P37) -> 0
P41: =P14 -> 0
A42: RECONCILIATION ADJUSTMENTS | P42: =P40-P41 -> 0
E43: =E$31 -> Bioresources outturn debt allowance | F43: =F$31 -> 0 | G43: £m | H43: 6.763555055 | I43: 0 | J43: 0 | K43: 1.584146091 | L43: 1.38444585 | M43: 1.27647299 | N43: 1.256838129 | O43: 1.261651994
E44: =E$40 -> Bioresources initial cost of debt allowance | F44: =F$40 -> 0 | G44: £m | H44: 0 | I44: 0 | J44: 0 | K44: 1.392166137 | L44: 1.31972071 | M44: 1.26224363 | N44: 1.212138612 | O44: 1.171577065
E45: Reconciliation (in-year values) - Bioresources | G45: £m | H45: =SUM(J45:O45) -> 0.4057088996 | J45: =J43-J44 -> 0 | K45: 0.1919799536 | L45: 0.0647251397 | M45: 0.01422936012 | N45: 0.04469951725 | O45: 0.09007492891
E47: =InpC!E$61 -> PV base date | F47: =InpC!F$61 -> 2025-03-31 | G47: =InpC!G$61 -> date
E48: =InpC!E$62 -> Days in a year | F48: =InpC!F$62 -> 365 | G48: =InpC!G$62 -> days
E49: =Time!E$22 -> Model Period END | F49: =Time!F$22 -> 0 | G49: =Time!G$22 -> date | H49: =Time!H$22 -> 00:00:00 | I49: =Time!I$22 -> 00:00:00 | J49: =Time!J$22 -> 2020-03-31 | K49: =Time!K$22 -> 2021-03-31 | L49: =Time!L$22 -> 2022-03-31 | M49: =Time!M$22 -> 2023-03-31 | N49: =Time!N$22 -> 2024-03-31 | O49: =Time!O$22 -> 2025-03-31 | P49: =Time!P$22 -> 2026-03-31
E50: Years from valuation date - Bioresources | G50: years | J50: =ROUND( ( ( J49 - $F47 ) / $F48 ) * -1, 0) -> 5 | K50: =ROUND( ( ( K49 - $F47 ) / $F48 ) * -1, 0) -> 4 | L50: 3 | M50: 2 | N50: 1 | O50: 0
E52: =InpC!E56 -> PR19 appointee allowed return on capital (CPIH-deflated using long-term assumption) | F52: =InpC!F56 -> 0.0296 | G52: =InpC!G56 -> percentage | K52: =$F$52 -> 0.0296 | L52: =$F$52 -> 0.0296 | M52: 0.0296 | N52: 0.0296 | O52: 0.0296
E53: =E$50 -> Years from valuation date - Bioresources | F53: =F$50 -> 0 | G53: years | H53: 0 | I53: 0 | J53: 5 | K53: 4 | L53: 3 | M53: 2 | N53: 1 | O53: 0
E54: Discount factor - Bioresources | G54: Factor | J54: =(1+$F52) ^J53 -> 1.157024804 | K54: 1.123761465 | L54: 1.091454414 | M54: 1.06007616 | N54: 1.0296 | O54: 1
E56: =E$45 -> Reconciliation (in-year values) - Bioresources | F56: =F$45 -> 0 | G56: £m | H56: 0.4057088996 | I56: 0 | J56: 0 | K56: 0.1919799536 | L56: 0.0647251397 | M56: 0.01422936012 | N56: 0.04469951725 | O56: 0.09007492891
E57: =E$54 -> Discount factor - Bioresources | F57: =F$54 -> 0 | G57: Factor | H57: 0 | I57: 0 | J57: 1.157024804 | K57: 1.123761465 | L57: 1.091454414 | M57: 1.06007616 | N57: 1.0296 | O57: 1
E58: Discounted reconciliation (in-year values) Bioresources | G58: £m | K58: =K57*K56 -> 0.215739674 | L58: =L57*L56 -> 0.07064453945 | M58: =M57*M56 -> 0.01508420544 | N58: =N57*N56 -> 0.04602262296 | O58: =O57*O56 -> 0.09007492891
E60: =E$58 -> Discounted reconciliation (in-year values) Bioresources | F60: =F$58 -> 0 | G60: £m | H60: 0 | I60: 0 | J60: 0 | K60: 0.215739674 | L60: 0.07064453945 | M60: 0.01508420544 | N60: 0.04602262296 | O60: 0.09007492891
E61: Total value of reconciliation (31 March 2025 present values): Bioresources | G61: £m | H61: =SUM(K60:O60) -> 0.4375659707

Sheet Dummy
A1: =RIGHT(CELL("filename", $A$1), LEN(CELL("filename", $A$1)) - SEARCH("]", CELL("filename", $A$1))) -> Dummy
J2: =Time!J$22 -> 2020-03-31 | K2: =Time!K$22 -> 2021-03-31 | L2: =Time!L$22 -> 2022-03-31 | M2: =Time!M$22 -> 2023-03-31 | N2: =Time!N$22 -> 2024-03-31 | O2: =Time!O$22 -> 2025-03-31 | P2: =Time!P$22 -> 2026-03-31
J3: =Time!J$58 -> Pre Fcst | K3: =Time!K$58 -> Forecast | L3: =Time!L$58 -> Forecast | M3: =Time!M$58 -> Forecast | N3: =Time!N$58 -> Forecast | O3: =Time!O$58 -> Forecast | P3: =Time!P$58 -> Post-Fcst
E4: =Time!E$86 -> Financial Year Ending | J4: =Time!J$86 -> 2020 | K4: =Time!K$86 -> 2021 | L4: =Time!L$86 -> 2022 | M4: =Time!M$86 -> 2023 | N4: =Time!N$86 -> 2024 | O4: =Time!O$86 -> 2025 | P4: =Time!P$86 -> 2026
E5: =Time!E$10 -> Model column counter | F5: Constant | G5: Unit | H5: Total | J5: =Time!J$10 -> 1 | K5: =Time!K$10 -> 2 | L5: =Time!L$10 -> 3 | M5: =Time!M$10 -> 4 | N5: =Time!N$10 -> 5 | O5: =Time!O$10 -> 6 | P5: =Time!P$10 -> 7
A7: COST OF DEBT CALCULATION BASED ON INDEX OUTTURN
E8: Company-specific adjustment flag | F8: =IF(InpC!$F$70="YES",1,0) -> 0 | G8: Flag | K8: =$F$8 -> 0 | L8: =$F$8 -> 0 | M8: 0 | N8: 0 | O8: 0
E9: =InpC!E64 -> Company-specific adjustment (new debt) | F9: =InpC!F64 -> 0.0025 | G9: ='Cost of Debt'!G47 -> Percentage | K9: =$F$9 -> 0.0025 | L9: =$F$9 -> 0.0025 | M9: 0.0025 | N9: 0.0025 | O9: 0.0025
E10: =InpC!E65 -> Company-specific adjustment (embedded debt) | F10: =InpC!$F$65 -> 0.0035 | G10: ='Cost of Debt'!G48 -> Percentage | K10: =$F$10 -> 0.0035 | L10: =$F$10 -> 0.0035 | M10: =$F$10 -> 0.0035 | N10: =$F$10 -> 0.0035 | O10: =$F$10 -> 0.0035
E11: ='Cost of Debt'!E48 -> Extending trailing average rate | F11: ='Cost of Debt'!F48 -> 0 | G11: ='Cost of Debt'!G48 -> Percentage | H11: ='Cost of Debt'!H48 -> 0 | I11: ='Cost of Debt'!I48 -> 0 | J11: ='Cost of Debt'!J48 -> 0 | K11: ='Cost of Debt'!K48 -> 9.803921569e-05 | L11: ='Cost of Debt'!L48 -> 0.001045751634 | M11: ='Cost of Debt'!M48 -> 0.006450980392 | N11: ='Cost of Debt'!N48 -> 0.01338935574 | O11: ='Cost of Debt'!O48 -> 0.01806100218 | P11: ='Cost of Debt'!P48 -> 0
E12: Extending trailing average rate (after any CSA adjustments) | G12: Percentage | K12: =K11+(K8*K9) -> 9.803921569e-05 | L12: =L11+(L8*L9) -> 0.001045751634 | M12: 0.006450980392 | N12: 0.01338935574 | O12: 0.01806100218 | P12: 0
E13: ='RCV and post 2020 investment'!E86 -> Dummy New debt for return | F13: ='RCV and post 2020 investment'!F86 -> 0 | G13: ='RCV and post 2020 investment'!G86 -> £m | H13: ='RCV and post 2020 investment'!H86 -> 0 | I13: ='RCV and post 2020 investment'!I86 -> 0 | J13: ='RCV and post 2020 investment'!J86 -> 0 | K13: ='RCV and post 2020 investment'!K86 -> 0 | L13: ='RCV and post 2020 investment'!L86 -> 0 | M13: ='RCV and post 2020 investment'!M86 -> 0 | N13: ='RCV and post 2020 investment'!N86 -> 0 | O13: ='RCV and post 2020 investment'!O86 -> 0 | P13: ='RCV and post 2020 investment'!P52 -> 0
E14: Dummy extending trailing average interest cost | G14: £m | H14: =SUM(J14:O14) -> 0 | J14: =J11 * J13 -> 0 | K14: =K12 * K13 -> 0 | L14: =L12 * L13 -> 0 | M14: 0 | N14: 0 | O14: 0 | P14: 0
E16: ='RCV and post 2020 investment'!E90 -> Dummy Embedded debt for return | F16: ='RCV and post 2020 investment'!F56 -> 0 | G16: ='RCV and post 2020 investment'!G56 -> £m | H16: ='RCV and post 2020 investment'!H90 -> 0 | I16: ='RCV and post 2020 investment'!I56 -> 0 | J16: ='RCV and post 2020 investment'!J56 -> 0 | K16: ='RCV and post 2020 investment'!K90 -> 0 | L16: ='RCV and post 2020 investment'!L90 -> 0 | M16: ='RCV and post 2020 investment'!M90 -> 0 | N16: ='RCV and post 2020 investment'!N90 -> 0 | O16: ='RCV and post 2020 investment'!O90 -> 0 | P16: ='RCV and post 2020 investment'!P56 -> 0
E17: =InpR!E$37 -> Allowed sector embedded debt cost (not inc. CSA) - final determination (CPIH real) | F17: =InpR!F$37 -> 0 | G17: =InpR!G$37 -> percentage | H17: =InpR!H$37 -> 0 | I17: =InpR!I$37 -> 0 | J17: =InpR!J$37 -> 0 | K17: =InpR!K$37 -> 0.0242 | L17: =InpR!L$37 -> 0.0242 | M17: =InpR!M$37 -> 0.0242 | N17: =InpR!N$37 -> 0.0242 | O17: =InpR!O$37 -> 0.0242 | P17: =InpR!P$37 -> 0
E18: Allowed sector embedded debt cost (after any CSA adjustments) | K18: =K17+(K8*K10) -> 0.0242 | L18: =L17+(L8*L10) -> 0.0242 | M18: 0.0242 | N18: 0.0242 | O18: 0.0242
E19: Dummy Embedded debt interest cost | G19: £m | H19: =SUM(J19:O19) -> 0 | J19: =J16 * J17 -> 0 | K19: =K16 * K18 -> 0 | L19: =L16 * L18 -> 0 | M19: 0 | N19: 0 | O19: 0 | P19: =P16 * P17 -> 0
E21: Dummy outturn allowed new debt cost (CPIH real) | F21: 0 | G21: Percentage | K21: =K12 -> 9.803921569e-05 | L21: =L12 -> 0.001045751634 | M21: 0.006450980392 | N21: 0.01338935574 | O21: 0.01806100218
E22: Dummy allowed embedded debt cost (CPIH real) | F22: 0 | G22: Percentage | K22: =K18 -> 0.0242 | L22: =L18 -> 0.0242 | M22: 0.0242 | N22: 0.0242 | O22: 0.0242 | P22: =P17 -> 0
E23: Ratio of new to embedded debt for outturn cost of debt allowance | F23: 0 | G23: Percentage | K23: =InpR!K57 -> 0.04 | L23: =InpR!L57 -> 0.12 | M23: =InpR!M57 -> 0.2 | N23: =InpR!N57 -> 0.28 | O23: =InpR!O57 -> 0.36
E24: Dummy outturn allowed cost of overall debt (CPIH real) | F24: 0 | G24: Percentage | K24: =(K23*K21)+(1-K23)*K22 -> 0.02323592157 | L24: =(L23*L21)+(1-L23)*L22 -> 0.0214214902 | M24: =(M23*M21)+(1-M23)*M22 -> 0.02065019608 | N24: =(N23*N21)+(1-N23)*N22 -> 0.02117301961 | O24: =(O23*O21)+(1-O23)*O22 -> 0.02198996078
E25: CPIH inflation (long-term assumption) | F25: 0 | G25: Percentage | K25: =InpR!K59 -> 0.02 | L25: =InpR!L59 -> 0.02 | M25: =InpR!M59 -> 0.02 | N25: =InpR!N59 -> 0.02 | O25: =InpR!O59 -> 0.02
E26: Issuance and liquidity costs | G26: Percentage | K26: =InpR!K38 -> 0.001 | L26: =InpR!L38 -> 0.001 | M26: =InpR!M38 -> 0.001 | N26: =InpR!N38 -> 0.001 | O26: =InpR!O38 -> 0.001
E27: Dummy outturn allowed cost of overall debt (Nominal) | F27: 0 | G27: Percentage | K27: =((1+K24)*(1+K25)-1)+K26 -> 0.04470064 | L27: =((1+L24)*(1+L25)-1)+L26 -> 0.04284992 | M27: =((1+M24)*(1+M25)-1)+M26 -> 0.0420632 | N27: =((1+N24)*(1+N25)-1)+N26 -> 0.04259648 | O27: 0.04342976
E29: =E$14 -> Dummy extending trailing average interest cost | F29: 0 | G29: £m | H29: 0 | I29: 0 | J29: 0 | K29: 0 | L29: 0 | M29: 0 | N29: 0 | O29: 0 | P29: 0
E30: =E$19 -> Dummy Embedded debt interest cost | F30: =F$19 -> 0 | G30: =G$19 -> £m | H30: 0 | I30: 0 | J30: 0 | K30: 0 | L30: 0 | M30: 0 | N30: 0 | O30: 0 | P30: 0
E31: Dummy outturn debt allowance | G31: £m | H31: =SUM(J31:O31) -> 0 | J31: =SUM(J29:J30) -> 0 | K31: 0 | L31: 0 | M31: 0 | N31: 0 | O31: 0 | P31: 0
A33: FD ALLOWANCE
E34: =InpC!E51 -> Notional % of 'new' debt over period | F34: =InpC!F51 -> 0.2 | G34: =InpC!G51 -> percentage | K34: =$F$34 -> 0.2 | L34: =$F$34 -> 0.2 | M34: 0.2 | N34: 0.2 | O34: 0.2 | P34: =InpR!P36 -> 0
E35: =InpR!E36 -> Allowed sector new debt cost (not inc. CSA) - final determination (CPIH real) | F35: =InpR!F36 -> 0 | G35: =InpR!G36 -> percentage | H35: =InpR!H36 -> 0 | I35: =InpR!I36 -> 0 | J35: =InpR!J36 -> 0 | K35: =InpR!K36 -> 0.0053 | L35: =InpR!L36 -> 0.0053 | M35: =InpR!M36 -> 0.0053 | N35: =InpR!N36 -> 0.0053 | O35: =InpR!O36 -> 0.0053 | P35: =P13 -> 0
E36: Allowed sector cost of new debt (after any CSA adjustments) | K36: =K35+(K8*K9) -> 0.0053 | L36: =L35+(L8*L9) -> 0.0053 | M36: =M35+(M8*M9) -> 0.0053 | N36: =N35+(N8*N9) -> 0.0053 | O36: =O35+(O8*O9) -> 0.0053
E37: =InpR!E37 -> Allowed sector embedded debt cost (not inc. CSA) - final determination (CPIH real) | F37: =InpR!F37 -> 0 | G37: =InpR!G37 -> percentage | H37: =InpR!H37 -> 0 | I37: =InpR!I37 -> 0 | J37: =InpR!J37 -> 0 | K37: =InpR!K37 -> 0.0242 | L37: =InpR!L37 -> 0.0242 | M37: =InpR!M37 -> 0.0242 | N37: =InpR!N37 -> 0.0242 | O37: =InpR!O37 -> 0.0242 | P37: =P34*P35 -> 0
E38: Allowed sector cost of embedded debt (after any CSA adjustments) | K38: =K37+(K8*K10) -> 0.0242 | L38: =L37+(L8*L10) -> 0.0242 | M38: =M37+(M8*M10) -> 0.0242 | N38: =N37+(N8*N10) -> 0.0242 | O38: =O37+(O8*O10) -> 0.0242
E39: ='RCV and post 2020 investment'!E82 -> Dummy Notional debt | F39: ='RCV and post 2020 investment'!F82 -> 0 | G39: ='RCV and post 2020 investment'!G82 -> £m | H39: ='RCV and post 2020 investment'!H82 -> 0 | I39: ='RCV and post 2020 investment'!I82 -> 0 | J39: ='RCV and post 2020 investment'!J82 -> 0 | K39: ='RCV and post 2020 investment'!K82 -> 0 | L39: ='RCV and post 2020 investment'!L82 -> 0 | M39: ='RCV and post 2020 investment'!M82 -> 0 | N39: ='RCV and post 2020 investment'!N82 -> 0 | O39: ='RCV and post 2020 investment'!O82 -> 0
E40: Dummy initial cost of debt allowance | G40: £m | I40: =I$14 -> 0 | K40: =(K39 * $K34 * K36) + (K39 * (1-$K34) * K38) -> 0 | L40: =(L39 * $K34 * L36) + (L39 * (1-$K34) * L38) -> 0 | M40: 0 | N40: 0 | O40: 0 | P40: =(P39 * $F34 * P35) + (P39 * (1-$F34) * P37) -> 0
P41: =P14 -> 0
A42: RECONCILIATION ADJUSTMENTS | P42: =P40-P41 -> 0
E43: =E$31 -> Dummy outturn debt allowance | F43: =F$31 -> 0 | G43: £m | H43: 0 | I43: 0 | J43: 0 | K43: 0 | L43: 0 | M43: 0 | N43: 0 | O43: 0
E44: =E$40 -> Dummy initial cost of debt allowance | F44: =F$40 -> 0 | G44: £m | H44: 0 | I44: 0 | J44: 0 | K44: 0 | L44: 0 | M44: 0 | N44: 0 | O44: 0
E45: Reconciliation (in-year values) - Dummy | G45: £m | H45: =SUM(J45:O45) -> 0 | J45: =J43-J44 -> 0 | K45: 0 | L45: 0 | M45: 0 | N45: 0 | O45: 0
E47: =InpC!E$61 -> PV base date | F47: =InpC!F$61 -> 2025-03-31 | G47: =InpC!G$61 -> date
E48: =InpC!E$62 -> Days in a year | F48: =InpC!F$62 -> 365 | G48: =InpC!G$62 -> days
E49: =Time!E$22 -> Model Period END | F49: =Time!F$22 -> 0 | G49: =Time!G$22 -> date | H49: =Time!H$22 -> 00:00:00 | I49: =Time!I$22 -> 00:00:00 | J49: =Time!J$22 -> 2020-03-31 | K49: =Time!K$22 -> 2021-03-31 | L49: =Time!L$22 -> 2022-03-31 | M49: =Time!M$22 -> 2023-03-31 | N49: =Time!N$22 -> 2024-03-31 | O49: =Time!O$22 -> 2025-03-31 | P49: =Time!P$22 -> 2026-03-31
E50: Years from valuation date - Dummy | G50: years | J50: =ROUND( ( ( J49 - $F47 ) / $F48 ) * -1, 0) -> 5 | K50: =ROUND( ( ( K49 - $F47 ) / $F48 ) * -1, 0) -> 4 | L50: 3 | M50: 2 | N50: 1 | O50: 0
E52: =InpC!E56 -> PR19 appointee allowed return on capital (CPIH-deflated using long-term assumption) | F52: =InpC!F56 -> 0.0296 | G52: =InpC!G56 -> percentage | K52: =$F$52 -> 0.0296 | L52: =$F$52 -> 0.0296 | M52: 0.0296 | N52: 0.0296 | O52: 0.0296
E53: =E$50 -> Years from valuation date - Dummy | F53: =F$50 -> 0 | G53: years | H53: 0 | I53: 0 | J53: 5 | K53: 4 | L53: 3 | M53: 2 | N53: 1 | O53: 0
E54: Discount factor - Dummy | G54: Factor | J54: =(1+$F52) ^J53 -> 1.157024804 | K54: 1.123761465 | L54: 1.091454414 | M54: 1.06007616 | N54: 1.0296 | O54: 1
E56: =E$45 -> Reconciliation (in-year values) - Dummy | F56: =F$45 -> 0 | G56: £m | H56: 0 | I56: 0 | J56: 0 | K56: 0 | L56: 0 | M56: 0 | N56: 0 | O56: 0
E57: =E$54 -> Discount factor - Dummy | F57: =F$54 -> 0 | G57: Factor | H57: 0 | I57: 0 | J57: 1.157024804 | K57: 1.123761465 | L57: 1.091454414 | M57: 1.06007616 | N57: 1.0296 | O57: 1
E58: Discounted reconciliation (in-year values) Dummy | G58: £m | K58: =K57*K56 -> 0 | L58: =L57*L56 -> 0 | M58: =M57*M56 -> 0 | N58: =N57*N56 -> 0 | O58: =O57*O56 -> 0
E60: =E$58 -> Discounted reconciliation (in-year values) Dummy | F60: =F$58 -> 0 | G60: £m | H60: 0 | I60: 0 | J60: 0 | K60: 0 | L60: 0 | M60: 0 | N60: 0 | O60: 0
E61: Total value of reconciliation (31 March 2025 present values): Dummy | G61: £m | H61: =SUM(K60:O60) -> 0

Sheet Output
A1: =RIGHT(CELL("filename", $A$1), LEN(CELL("filename", $A$1)) - SEARCH("]", CELL("filename", $A$1))) -> Output
J2: =Time!J22 -> 2020-03-31 | K2: =Time!K22 -> 2021-03-31 | L2: =Time!L22 -> 2022-03-31 | M2: =Time!M22 -> 2023-03-31 | N2: =Time!N22 -> 2024-03-31 | O2: =Time!O22 -> 2025-03-31 | P2: =Time!P22 -> 2026-03-31
J3: =Time!J58 -> Pre Fcst | K3: =Time!K58 -> Forecast | L3: =Time!L58 -> Forecast | M3: =Time!M58 -> Forecast | N3: =Time!N58 -> Forecast | O3: =Time!O58 -> Forecast | P3: =Time!P58 -> Post-Fcst
J4: =Time!J86 -> 2020 | K4: =Time!K86 -> 2021 | L4: =Time!L86 -> 2022 | M4: =Time!M86 -> 2023 | N4: =Time!N86 -> 2024 | O4: =Time!O86 -> 2025 | P4: =Time!P86 -> 2026
F5: Constant | G5: Unit | H5: Total | J5: =Time!J5 -> 1 | K5: =Time!K5 -> 2 | L5: =Time!L5 -> 3 | M5: =Time!M5 -> 4 | N5: =Time!N5 -> 5 | O5: =Time!O5 -> 6 | P5: =Time!P5 -> 7
A7: Total revenue adjustments applied as part of PR24
E9: Outturn nominal weighted average cost of debt - Water resources | G9: % | K9: ='Water resources'!K27 -> 0.04470064 | L9: ='Water resources'!L27 -> 0.04284992 | M9: ='Water resources'!M27 -> 0.0420632 | N9: ='Water resources'!N27 -> 0.04259648 | O9: ='Water resources'!O27 -> 0.04342976
E10: Outturn nominal weighted average cost of debt - Water network plus | G10: % | K10: ='Water network +'!K27 -> 0.04470064 | L10: ='Water network +'!L27 -> 0.04284992 | M10: ='Water network +'!M27 -> 0.0420632 | N10: ='Water network +'!N27 -> 0.04259648 | O10: ='Water network +'!O27 -> 0.04342976
E11: Outturn nominal weighted average cost of debt - Wastewater network plus | G11: % | K11: ='Wastewater network +'!K27 -> 0.04470064 | L11: ='Wastewater network +'!L27 -> 0.04284992 | M11: ='Wastewater network +'!M27 -> 0.0420632 | N11: ='Wastewater network +'!N27 -> 0.04259648 | O11: ='Wastewater network +'!O27 -> 0.04342976
E12: Outturn nominal weighted average cost of debt - Bioresources | G12: % | K12: =Bioresources!K27 -> 0.04470064 | L12: =Bioresources!L27 -> 0.04284992 | M12: =Bioresources!M27 -> 0.0420632 | N12: =Bioresources!N27 -> 0.04259648 | O12: =Bioresources!O27 -> 0.04342976
E13: Outturn nominal weighted average cost of debt - Dummy | G13: % | K13: =Dummy!K27 -> 0.04470064 | L13: =Dummy!L27 -> 0.04284992 | M13: =Dummy!M27 -> 0.0420632 | N13: =Dummy!N27 -> 0.04259648 | O13: =Dummy!O27 -> 0.04342976
E15: Revenue adjustment from new debt reconciliation - Water resources | G15: £m, CPIH-deflated 2017/18 prices, 2024/25 present values | K15: ='Water resources'!K60 -> 0.1313571119 | L15: ='Water resources'!L60 -> 0.04862441958 | M15: ='Water resources'!M60 -> 0.01104267846 | N15: ='Water resources'!N60 -> 0.03499935436 | O15: ='Water resources'!O60 -> 0.06953388272
E16: Revenue adjustment from new debt reconciliation - Water network plus | G16: £m, CPIH-deflated 2017/18 prices, 2024/25 present values | K16: ='Water network +'!K60 -> 1.9469924 | L16: ='Water network +'!L60 -> 0.6654211056 | M16: ='Water network +'!M60 -> 0.1482621086 | N16: ='Water network +'!N60 -> 0.470688749 | O16: ='Water network +'!O60 -> 0.9419357543
E17: Revenue adjustment from new debt reconciliation - Wastewater network plus | G17: £m, CPIH-deflated 2017/18 prices, 2024/25 present values | K17: ='Wastewater network +'!K60 -> 3.609309759 | L17: ='Wastewater network +'!L60 -> 1.311069426 | M17: ='Wastewater network +'!M60 -> 0.304500543 | N17: ='Wastewater network +'!N60 -> 0.9997733441 | O17: ='Wastewater network +'!O60 -> 2.078029397
E18: Revenue adjustment from new debt reconciliation - Bioresources | G18: £m, CPIH-deflated 2017/18 prices, 2024/25 present values | K18: =Bioresources!K60 -> 0.215739674 | L18: =Bioresources!L60 -> 0.07064453945 | M18: =Bioresources!M60 -> 0.01508420544 | N18: =Bioresources!N60 -> 0.04602262296 | O18: =Bioresources!O60 -> 0.09007492891
E19: Revenue adjustment from new debt reconciliation - Dummy | G19: £m, CPIH-deflated 2017/18 prices, 2024/25 present values | K19: =Dummy!K60 -> 0 | L19: =Dummy!L60 -> 0 | M19: =Dummy!M60 -> 0 | N19: =Dummy!N60 -> 0 | O19: =Dummy!O60 -> 0
